Workbook

Sheet MainMenu
A1: TURNS5 Turning Movement Analysis Tool - V2014
A2: Main Menu
B26: NOTES
B27: The input process is fully menu driven - just fill in data at the prompts.
B28: Manually changing the data on the InputSheet page will NOT invoke the macros.
B29: The input last entered into the workbook will automatically be shown in prompts.
B30: If the shapes (arrows, boxes, buttons) on any tab become distorted, switch to Page
B31: Break Preview and back to Normal and the format will be corrected.

Sheet InputSheet
A1: TURNS5 ANALYSIS SHEET - INPUT | I1: Table Step 1a, directly below, contains unaltered DDHVs (not affected by any distribution required to run the macro).These values will feed into 'TurnSheets'.
B4: Analyst: | I4: Step 1a | J4: Approach Volumes: Summarized AADT*K*D | P4: Step 1b | Q4: Departure Volumes: Summarized AADT*K*(1-D) | V4: Difference between Senter and Sexit. If positive, Sexit<Senter. If negative Sexit>Senter. | Y4: Summarized AADT (Only used for TurnSheets graphic)
B5: Date: | C5: =NOW() -> 2019-05-16T10:22:52.340 | J5: From West: | K5: From East: | L5: From North: | M5: From South: | N5: Senter | Q5: To West: | R5: To East: | S5: To North: | T5: To South: | U5: Sexit | Z5: From West: | AA5: From East: | AB5: From North: | AC5: From South: | AD5: Senter
B6: Highway: | I6: Year | J6: EB Approach | K6: WB Approach | L6: SB Approach | M6: NB Approach | N6: TOTAL | P6: Year | Q6: WB Departure | R6: EB Departure | S6: NB Departure | T6: SB Departure | U6: TOTAL | W6: Senter=Sexit? | Y6: Year | Z6: EB Approach | AA6: WB Approach | AB6: SB Approach | AC6: NB Approach | AD6: TOTAL
B7: Intersection: | I7: =IF(Data!$B$2="yes",$I$56,$I$42) -> 0 | J7: =ROUND(IF($J$11=1,IF(Data!$B$2="yes",ROUND($J$56,0),ROUND($J$42,0)),IF($J$11=2,IF(Data!$B$2="yes",ROUND($J$83,0),ROUND($J$69,0)),IF(Data!$B$2="yes",ROUND($J$110,0),ROUND($J$96,0))))*VLOOKUP("Eastbound (EB)",$E$16:$F$20,2,FALSE)*IF(Data!$B$1="Yes",$C$18,$C$16),0) -> 0 | K7: =ROUND(IF($K$11=1,IF(Data!$B$2="yes",ROUND($K$56,0),ROUND($K$42,0)),IF($K$11=2,IF(Data!$B$2="yes",ROUND($K$83,0),ROUND($K$69,0)),IF(Data!$B$2="yes",ROUND($K$110,0),ROUND($K$96,0))))*VLOOKUP("Westbound (WB)",$E$16:$F$20,2,FALSE)*IF(Data!$B$1="Yes",$C$18,$C$16),0) -> 0 | L7: =ROUND(IF($L$11=1,IF(Data!$B$2="yes",ROUND($L$56,0),ROUND($L$42,0)),IF($L$11=2,IF(Data!$B$2="yes",ROUND($L$83,0),ROUND($L$69,0)),IF(Data!$B$2="yes",ROUND($L$110,0),ROUND($L$96,0))))*VLOOKUP("Southbound (SB)",$E$16:$F$20,2,FALSE)*IF(Data!$B$1="Yes",$C$16,$C$18),0) -> 0 | M7: =ROUND(IF($M$11=1,IF(Data!$B$2="yes",ROUND($M$56,0),ROUND($M$42,0)),IF($M$11=2,IF(Data!$B$2="yes",ROUND($M$83,0),ROUND($M$69,0)),IF(Data!$B$2="yes",ROUND($M$110,0),ROUND($M$96,0))))*VLOOKUP("Northbound (NB)",$E$16:$F$20,2,FALSE)*IF(Data!$B$1="Yes",$C$16,$C$18),0) -> 0 | N7: =SUM(J7:M7) -> 0 | P7: =I7 -> 0 | Q7: =ROUND(IF($J$11=1,IF(Data!$B$2="yes",ROUND($J$56,0),ROUND($J$42,0)),IF($J$11=2,IF(Data!$B$2="yes",ROUND($J$83,0),ROUND($J$69,0)),IF(Data!$B$2="yes",ROUND($J$110,0),ROUND($J$96,0))))*(1-VLOOKUP("Eastbound (EB)",$E$16:$F$20,2,FALSE))*IF(Data!$B$1="Yes",$C$18,$C$16),0) -> 0 | R7: =ROUND(IF($K$11=1,IF(Data!$B$2="yes",ROUND($K$56,0),ROUND($K$42,0)),IF($K$11=2,IF(Data!$B$2="yes",ROUND($K$83,0),ROUND($K$69,0)),IF(Data!$B$2="yes",ROUND($K$110,0),ROUND($K$96,0))))*(1-VLOOKUP("Westbound (WB)",$E$16:$F$20,2,FALSE))*IF(Data!$B$1="Yes",$C$18,$C$16),0) -> 0 | S7: =ROUND(IF($L$11=1,IF(Data!$B$2="yes",ROUND($L$56,0),ROUND($L$42,0)),IF($L$11=2,IF(Data!$B$2="yes",ROUND($L$83,0),ROUND($L$69,0)),IF(Data!$B$2="yes",ROUND($L$110,0),ROUND($L$96,0))))*(1-VLOOKUP("Southbound (SB)",$E$16:$F$20,2,FALSE))*IF(Data!$B$1="Yes",$C$16,$C$18),0) -> 0 | T7: =ROUND(IF($M$11=1,IF(Data!$B$2="yes",ROUND($M$56,0),ROUND($M$42,0)),IF($M$11=2,IF(Data!$B$2="yes",ROUND($M$83,0),ROUND($M$69,0)),IF(Data!$B$2="yes",ROUND($M$110,0),ROUND($M$96,0))))*(1-VLOOKUP("Northbound (NB)",$E$16:$F$20,2,FALSE))*IF(Data!$B$1="Yes",$C$16,$C$18),0) -> 0 | U7: =SUM(Q7:T7) -> 0 | V7: =N7-U7 -> 0 | W7: =IF(N7=U7,"Yes","No") -> Yes | Y7: =IF(Data!$B$2="yes",$I$56,$I$42) -> 0 | Z7: =ROUND(IF($J$11=1,IF(Data!$B$2="yes",ROUND($J$56,0),ROUND($J$42,0)),IF($J$11=2,IF(Data!$B$2="yes",ROUND($J$83,0),ROUND($J$69,0)),IF(Data!$B$2="yes",ROUND($J$110,0),ROUND($J$96,0)))),0) -> 0 | AA7: =ROUND(IF($K$11=1,IF(Data!$B$2="yes",ROUND($K$56,0),ROUND($K$42,0)),IF($K$11=2,IF(Data!$B$2="yes",ROUND($K$83,0),ROUND($K$69,0)),IF(Data!$B$2="yes",ROUND($K$110,0),ROUND($K$96,0)))),0) -> 0 | AB7: =ROUND(IF($L$11=1,IF(Data!$B$2="yes",ROUND($L$56,0),ROUND($L$42,0)),IF($L$11=2,IF(Data!$B$2="yes",ROUND($L$83,0),ROUND($L$69,0)),IF(Data!$B$2="yes",ROUND($L$110,0),ROUND($L$96,0)))),0) -> 0 | AC7: =ROUND(IF($M$11=1,IF(Data!$B$2="yes",ROUND($M$56,0),ROUND($M$42,0)),IF($M$11=2,IF(Data!$B$2="yes",ROUND($M$83,0),ROUND($M$69,0)),IF(Data!$B$2="yes",ROUND($M$110,0),ROUND($M$96,0)))),0) -> 0 | AD7: =SUM(Z7:AC7) -> 0
B8: Project: | I8: =IF(Data!$B$2="yes",$I$57,$I$43) -> 0 | J8: =ROUND(IF($J$11=1,IF(Data!$B$2="yes",ROUND($J$57,0),ROUND($J$43,0)),IF($J$11=2,IF(Data!$B$2="yes",ROUND($J$84,0),ROUND($J$70,0)),IF(Data!$B$2="yes",ROUND($J$111,0),ROUND($J$97,0))))*VLOOKUP("Eastbound (EB)",$E$16:$F$20,2,FALSE)*IF(Data!$B$1="Yes",$C$18,$C$16),0) -> 0 | K8: =ROUND(IF($K$11=1,IF(Data!$B$2="yes",ROUND($K$57,0),ROUND($K$43,0)),IF($K$11=2,IF(Data!$B$2="yes",ROUND($K$84,0),ROUND($K$70,0)),IF(Data!$B$2="yes",ROUND($K$111,0),ROUND($K$97,0))))*VLOOKUP("Westbound (WB)",$E$16:$F$20,2,FALSE)*IF(Data!$B$1="Yes",$C$18,$C$16),0) -> 0 | L8: =ROUND(IF($L$11=1,IF(Data!$B$2="yes",ROUND($L$57,0),ROUND($L$43,0)),IF($L$11=2,IF(Data!$B$2="yes",ROUND($L$84,0),ROUND($L$70,0)),IF(Data!$B$2="yes",ROUND($L$111,0),ROUND($L$97,0))))*VLOOKUP("Southbound (SB)",$E$16:$F$20,2,FALSE)*IF(Data!$B$1="Yes",$C$16,$C$18),0) -> 0 | M8: =ROUND(IF($M$11=1,IF(Data!$B$2="yes",ROUND($M$57,0),ROUND($M$43,0)),IF($M$11=2,IF(Data!$B$2="yes",ROUND($M$84,0),ROUND($M$70,0)),IF(Data!$B$2="yes",ROUND($M$111,0),ROUND($M$97,0))))*VLOOKUP("Northbound (NB)",$E$16:$F$20,2,FALSE)*IF(Data!$B$1="Yes",$C$16,$C$18),0) -> 0 | N8: =SUM(J8:M8) -> 0 | P8: =I8 -> 0 | Q8: =ROUND(IF($J$11=1,IF(Data!$B$2="yes",ROUND($J$57,0),ROUND($J$43,0)),IF($J$11=2,IF(Data!$B$2="yes",ROUND($J$84,0),ROUND($J$70,0)),IF(Data!$B$2="yes",ROUND($J$111,0),ROUND($J$97,0))))*(1-VLOOKUP("Eastbound (EB)",$E$16:$F$20,2,FALSE))*IF(Data!$B$1="Yes",$C$18,$C$16),0) -> 0 | R8: =ROUND(IF($K$11=1,IF(Data!$B$2="yes",ROUND($K$57,0),ROUND($K$43,0)),IF($K$11=2,IF(Data!$B$2="yes",ROUND($K$84,0),ROUND($K$70,0)),IF(Data!$B$2="yes",ROUND($K$111,0),ROUND($K$97,0))))*(1-VLOOKUP("Westbound (WB)",$E$16:$F$20,2,FALSE))*IF(Data!$B$1="Yes",$C$18,$C$16),0) -> 0 | S8: =ROUND(IF($L$11=1,IF(Data!$B$2="yes",ROUND($L$57,0),ROUND($L$43,0)),IF($L$11=2,IF(Data!$B$2="yes",ROUND($L$84,0),ROUND($L$70,0)),IF(Data!$B$2="yes",ROUND($L$111,0),ROUND($L$97,0))))*(1-VLOOKUP("Southbound (SB)",$E$16:$F$20,2,FALSE))*IF(Data!$B$1="Yes",$C$16,$C$18),0) -> 0 | T8: =ROUND(IF($M$11=1,IF(Data!$B$2="yes",ROUND($M$57,0),ROUND($M$43,0)),IF($M$11=2,IF(Data!$B$2="yes",ROUND($M$84,0),ROUND($M$70,0)),IF(Data!$B$2="yes",ROUND($M$111,0),ROUND($M$97,0))))*(1-VLOOKUP("Northbound (NB)",$E$16:$F$20,2,FALSE))*IF(Data!$B$1="Yes",$C$16,$C$18),0) -> 0 | U8: =SUM(Q8:T8) -> 0 | V8: =N8-U8 -> 0 | W8: =IF(N8=U8,"Yes","No") -> Yes | Y8: =IF(Data!$B$2="yes",$I$57,$I$43) -> 0 | Z8: =ROUND(IF($J$11=1,IF(Data!$B$2="yes",ROUND($J$57,0),ROUND($J$43,0)),IF($J$11=2,IF(Data!$B$2="yes",ROUND($J$84,0),ROUND($J$70,0)),IF(Data!$B$2="yes",ROUND($J$111,0),ROUND($J$97,0)))),0) -> 0 | AA8: =ROUND(IF($K$11=1,IF(Data!$B$2="yes",ROUND($K$57,0),ROUND($K$43,0)),IF($K$11=2,IF(Data!$B$2="yes",ROUND($K$84,0),ROUND($K$70,0)),IF(Data!$B$2="yes",ROUND($K$111,0),ROUND($K$97,0)))),0) -> 0 | AB8: =ROUND(IF($L$11=1,IF(Data!$B$2="yes",ROUND($L$57,0),ROUND($L$43,0)),IF($L$11=2,IF(Data!$B$2="yes",ROUND($L$84,0),ROUND($L$70,0)),IF(Data!$B$2="yes",ROUND($L$111,0),ROUND($L$97,0)))),0) -> 0 | AC8: =ROUND(IF($M$11=1,IF(Data!$B$2="yes",ROUND($M$57,0),ROUND($M$43,0)),IF($M$11=2,IF(Data!$B$2="yes",ROUND($M$84,0),ROUND($M$70,0)),IF(Data!$B$2="yes",ROUND($M$111,0),ROUND($M$97,0)))),0) -> 0 | AD8: =SUM(Z8:AC8) -> 0
I9: =IF(Data!$B$2="yes",$I$58,$I$44) -> 0 | J9: =ROUND(IF($J$11=1,IF(Data!$B$2="yes",ROUND($J$58,0),ROUND($J$44,0)),IF($J$11=2,IF(Data!$B$2="yes",ROUND($J$85,0),ROUND($J$71,0)),IF(Data!$B$2="yes",ROUND($J$112,0),ROUND($J$98,0))))*VLOOKUP("Eastbound (EB)",$E$16:$F$20,2,FALSE)*IF(Data!$B$1="Yes",$C$18,$C$16),0) -> 0 | K9: =ROUND(IF($K$11=1,IF(Data!$B$2="yes",ROUND($K$58,0),ROUND($K$44,0)),IF($K$11=2,IF(Data!$B$2="yes",ROUND($K$85,0),ROUND($K$71,0)),IF(Data!$B$2="yes",ROUND($K$112,0),ROUND($K$98,0))))*VLOOKUP("Westbound (WB)",$E$16:$F$20,2,FALSE)*IF(Data!$B$1="Yes",$C$18,$C$16),0) -> 0 | L9: =ROUND(IF($L$11=1,IF(Data!$B$2="yes",ROUND($L$58,0),ROUND($L$44,0)),IF($L$11=2,IF(Data!$B$2="yes",ROUND($L$85,0),ROUND($L$71,0)),IF(Data!$B$2="yes",ROUND($L$112,0),ROUND($L$98,0))))*VLOOKUP("Southbound (SB)",$E$16:$F$20,2,FALSE)*IF(Data!$B$1="Yes",$C$16,$C$18),0) -> 0 | M9: =ROUND(IF($M$11=1,IF(Data!$B$2="yes",ROUND($M$58,0),ROUND($M$44,0)),IF($M$11=2,IF(Data!$B$2="yes",ROUND($M$85,0),ROUND($M$71,0)),IF(Data!$B$2="yes",ROUND($M$112,0),ROUND($M$98,0))))*VLOOKUP("Northbound (NB)",$E$16:$F$20,2,FALSE)*IF(Data!$B$1="Yes",$C$16,$C$18),0) -> 0 | N9: =SUM(J9:M9) -> 0 | P9: =I9 -> 0 | Q9: =ROUND(IF($J$11=1,IF(Data!$B$2="yes",ROUND($J$58,0),ROUND($J$44,0)),IF($J$11=2,IF(Data!$B$2="yes",ROUND($J$85,0),ROUND($J$71,0)),IF(Data!$B$2="yes",ROUND($J$112,0),ROUND($J$98,0))))*(1-VLOOKUP("Eastbound (EB)",$E$16:$F$20,2,FALSE))*IF(Data!$B$1="Yes",$C$18,$C$16),0) -> 0 | R9: =ROUND(IF($K$11=1,IF(Data!$B$2="yes",ROUND($K$58,0),ROUND($K$44,0)),IF($K$11=2,IF(Data!$B$2="yes",ROUND($K$85,0),ROUND($K$71,0)),IF(Data!$B$2="yes",ROUND($K$112,0),ROUND($K$98,0))))*(1-VLOOKUP("Westbound (WB)",$E$16:$F$20,2,FALSE))*IF(Data!$B$1="Yes",$C$18,$C$16),0) -> 0 | S9: =ROUND(IF($L$11=1,IF(Data!$B$2="yes",ROUND($L$58,0),ROUND($L$44,0)),IF($L$11=2,IF(Data!$B$2="yes",ROUND($L$85,0),ROUND($L$71,0)),IF(Data!$B$2="yes",ROUND($L$112,0),ROUND($L$98,0))))*(1-VLOOKUP("Southbound (SB)",$E$16:$F$20,2,FALSE))*IF(Data!$B$1="Yes",$C$16,$C$18),0) -> 0 | T9: =ROUND(IF($M$11=1,IF(Data!$B$2="yes",ROUND($M$58,0),ROUND($M$44,0)),IF($M$11=2,IF(Data!$B$2="yes",ROUND($M$85,0),ROUND($M$71,0)),IF(Data!$B$2="yes",ROUND($M$112,0),ROUND($M$98,0))))*(1-VLOOKUP("Northbound (NB)",$E$16:$F$20,2,FALSE))*IF(Data!$B$1="Yes",$C$16,$C$18),0) -> 0 | U9: =SUM(Q9:T9) -> 0 | V9: =N9-U9 -> 0 | W9: =IF(N9=U9,"Yes","No") -> Yes | Y9: =IF(Data!$B$2="yes",$I$58,$I$44) -> 0 | Z9: =ROUND(IF($J$11=1,IF(Data!$B$2="yes",ROUND($J$58,0),ROUND($J$44,0)),IF($J$11=2,IF(Data!$B$2="yes",ROUND($J$85,0),ROUND($J$71,0)),IF(Data!$B$2="yes",ROUND($J$112,0),ROUND($J$98,0)))),0) -> 0 | AA9: =ROUND(IF($K$11=1,IF(Data!$B$2="yes",ROUND($K$58,0),ROUND($K$44,0)),IF($K$11=2,IF(Data!$B$2="yes",ROUND($K$85,0),ROUND($K$71,0)),IF(Data!$B$2="yes",ROUND($K$112,0),ROUND($K$98,0)))),0) -> 0 | AB9: =ROUND(IF($L$11=1,IF(Data!$B$2="yes",ROUND($L$58,0),ROUND($L$44,0)),IF($L$11=2,IF(Data!$B$2="yes",ROUND($L$85,0),ROUND($L$71,0)),IF(Data!$B$2="yes",ROUND($L$112,0),ROUND($L$98,0)))),0) -> 0 | AC9: =ROUND(IF($M$11=1,IF(Data!$B$2="yes",ROUND($M$58,0),ROUND($M$44,0)),IF($M$11=2,IF(Data!$B$2="yes",ROUND($M$85,0),ROUND($M$71,0)),IF(Data!$B$2="yes",ROUND($M$112,0),ROUND($M$98,0)))),0) -> 0 | AD9: =SUM(Z9:AC9) -> 0
B10: County: | I10: =IF(Data!$B$2="yes",$I$59,$I$45) -> 0 | J10: =ROUND(IF($J$11=1,IF(Data!$B$2="yes",ROUND($J$59,0),ROUND($J$45,0)),IF($J$11=2,IF(Data!$B$2="yes",ROUND($J$86,0),ROUND($J$72,0)),IF(Data!$B$2="yes",ROUND($J$113,0),ROUND($J$99,0))))*VLOOKUP("Eastbound (EB)",$E$16:$F$20,2,FALSE)*IF(Data!$B$1="Yes",$C$18,$C$16),0) -> 0 | K10: =ROUND(IF($K$11=1,IF(Data!$B$2="yes",ROUND($K$59,0),ROUND($K$45,0)),IF($K$11=2,IF(Data!$B$2="yes",ROUND($K$86,0),ROUND($K$72,0)),IF(Data!$B$2="yes",ROUND($K$113,0),ROUND($K$99,0))))*VLOOKUP("Westbound (WB)",$E$16:$F$20,2,FALSE)*IF(Data!$B$1="Yes",$C$18,$C$16),0) -> 0 | L10: =ROUND(IF($L$11=1,IF(Data!$B$2="yes",ROUND($L$59,0),ROUND($L$45,0)),IF($L$11=2,IF(Data!$B$2="yes",ROUND($L$86,0),ROUND($L$72,0)),IF(Data!$B$2="yes",ROUND($L$113,0),ROUND($L$99,0))))*VLOOKUP("Southbound (SB)",$E$16:$F$20,2,FALSE)*IF(Data!$B$1="Yes",$C$16,$C$18),0) -> 0 | M10: =ROUND(IF($M$11=1,IF(Data!$B$2="yes",ROUND($M$59,0),ROUND($M$45,0)),IF($M$11=2,IF(Data!$B$2="yes",ROUND($M$86,0),ROUND($M$72,0)),IF(Data!$B$2="yes",ROUND($M$113,0),ROUND($M$99,0))))*VLOOKUP("Northbound (NB)",$E$16:$F$20,2,FALSE)*IF(Data!$B$1="Yes",$C$16,$C$18),0) -> 0 | N10: =SUM(J10:M10) -> 0 | P10: =I10 -> 0 | Q10: =ROUND(IF($J$11=1,IF(Data!$B$2="yes",ROUND($J$59,0),ROUND($J$45,0)),IF($J$11=2,IF(Data!$B$2="yes",ROUND($J$86,0),ROUND($J$72,0)),IF(Data!$B$2="yes",ROUND($J$113,0),ROUND($J$99,0))))*(1-VLOOKUP("Eastbound (EB)",$E$16:$F$20,2,FALSE))*IF(Data!$B$1="Yes",$C$18,$C$16),0) -> 0 | R10: =ROUND(IF($K$11=1,IF(Data!$B$2="yes",ROUND($K$59,0),ROUND($K$45,0)),IF($K$11=2,IF(Data!$B$2="yes",ROUND($K$86,0),ROUND($K$72,0)),IF(Data!$B$2="yes",ROUND($K$113,0),ROUND($K$99,0))))*(1-VLOOKUP("Westbound (WB)",$E$16:$F$20,2,FALSE))*IF(Data!$B$1="Yes",$C$18,$C$16),0) -> 0 | S10: =ROUND(IF($L$11=1,IF(Data!$B$2="yes",ROUND($L$59,0),ROUND($L$45,0)),IF($L$11=2,IF(Data!$B$2="yes",ROUND($L$86,0),ROUND($L$72,0)),IF(Data!$B$2="yes",ROUND($L$113,0),ROUND($L$99,0))))*(1-VLOOKUP("Southbound (SB)",$E$16:$F$20,2,FALSE))*IF(Data!$B$1="Yes",$C$16,$C$18),0) -> 0 | T10: =ROUND(IF($M$11=1,IF(Data!$B$2="yes",ROUND($M$59,0),ROUND($M$45,0)),IF($M$11=2,IF(Data!$B$2="yes",ROUND($M$86,0),ROUND($M$72,0)),IF(Data!$B$2="yes",ROUND($M$113,0),ROUND($M$99,0))))*(1-VLOOKUP("Northbound (NB)",$E$16:$F$20,2,FALSE))*IF(Data!$B$1="Yes",$C$16,$C$18),0) -> 0 | U10: =SUM(Q10:T10) -> 0 | V10: =N10-U10 -> 0 | W10: =IF(N10=U10,"Yes","No") -> Yes | Y10: =IF(Data!$B$2="yes",$I$59,$I$45) -> 0 | Z10: =ROUND(IF($J$11=1,IF(Data!$B$2="yes",ROUND($J$59,0),ROUND($J$45,0)),IF($J$11=2,IF(Data!$B$2="yes",ROUND($J$86,0),ROUND($J$72,0)),IF(Data!$B$2="yes",ROUND($J$113,0),ROUND($J$99,0)))),0) -> 0 | AA10: =ROUND(IF($K$11=1,IF(Data!$B$2="yes",ROUND($K$59,0),ROUND($K$45,0)),IF($K$11=2,IF(Data!$B$2="yes",ROUND($K$86,0),ROUND($K$72,0)),IF(Data!$B$2="yes",ROUND($K$113,0),ROUND($K$99,0)))),0) -> 0 | AB10: =ROUND(IF($L$11=1,IF(Data!$B$2="yes",ROUND($L$59,0),ROUND($L$45,0)),IF($L$11=2,IF(Data!$B$2="yes",ROUND($L$86,0),ROUND($L$72,0)),IF(Data!$B$2="yes",ROUND($L$113,0),ROUND($L$99,0)))),0) -> 0 | AC10: =ROUND(IF($M$11=1,IF(Data!$B$2="yes",ROUND($M$59,0),ROUND($M$45,0)),IF($M$11=2,IF(Data!$B$2="yes",ROUND($M$86,0),ROUND($M$72,0)),IF(Data!$B$2="yes",ROUND($M$113,0),ROUND($M$99,0)))),0) -> 0 | AD10: =SUM(Z10:AC10) -> 0
I11: calc method | J11: =IF(Data!$B$1="no",Data!$B$8,Data!$C$8) -> 1 | K11: =IF(Data!$B$1="no",Data!$B$8,Data!$C$8) -> 1 | L11: =IF(Data!$B$1="yes",Data!$B$8,Data!$C$8) -> 1 | M11: =IF(Data!$B$1="yes",Data!$B$8,Data!$C$8) -> 1 | P11: =I11 -> calc method | Q11: =IF(Data!$B$1="no",Data!$B$8,Data!$C$8) -> 1 | R11: =IF(Data!$B$1="no",Data!$B$8,Data!$C$8) -> 1 | S11: =IF(Data!$B$1="yes",Data!$B$8,Data!$C$8) -> 1 | T11: =IF(Data!$B$1="yes",Data!$B$8,Data!$C$8) -> 1 | Y11: calc method | Z11: =IF(Data!$B$1="no",Data!$B$8,Data!$C$8) -> 1 | AA11: =IF(Data!$B$1="no",Data!$B$8,Data!$C$8) -> 1 | AB11: =IF(Data!$B$1="yes",Data!$B$8,Data!$C$8) -> 1 | AC11: =IF(Data!$B$1="yes",Data!$B$8,Data!$C$8) -> 1
A12: Is the Mainline
A13: Oriented North/South? | I13: Step 2a | J13: Approach Volumes to be distributed | P13: Step 2b | Q13: Departure Volumes to be distributed
J14: From West: | K14: From East: | L14: From North: | M14: From South: | Q14: To West: | R14: To East: | S14: To North: | T14: To South:
B15: K Factors | C15: Mainline | E15: D Factors | F15: Mainline | I15: Year | J15: EB Approach | K15: WB Approach | L15: SB Approach | M15: NB Approach | N15: TOTAL | P15: Year | Q15: WB Departure | R15: EB Departure | S15: NB Departure | T15: SB Departure | U15: TOTAL
C16: 0.07 | E16: =IF(Data!B1="yes","Northbound (NB)","Westbound (WB)") -> Westbound (WB) | F16: 0.5 | I16: =I7 -> 0 | J16: =IF($V7>=0," ",ROUND(J7/$N7*ABS($V7),0)) ->  | L16: =IF($V7>=0," ",IF(Data!B5=0,ABS(V7)-J16-K16,ROUND(L7/$N7*ABS($V7),0))) ->  | M16: =IF($V7>=0," ",IF(Data!B5=0,0,ABS($V7)-SUM(J16:L16))) ->  | N16: =SUM(J16:M16) -> 0 | P16: =P7 -> 0 | Q16: =IF($V7<=0," ",ROUND(Q7/$U7*$V7,0)) ->  | S16: =IF($V7<=0," ",IF(Data!B5=0,V7-Q16-R16,ROUND(S7/$U7*$V7,0))) ->  | T16: =IF($V7<=0," ",IF(Data!B5=0,0,$V7-SUM(Q16:S16))) ->  | U16: =SUM(Q16:T16) -> 0
C17: Side street | E17: =IF(Data!B1="yes","Southbound (SB)","Eastbound (EB)") -> Eastbound (EB) | F17: 0.5 | I17: =I8 -> 0 | L17: =IF($V8>=0," ",IF(Data!B5=0,ABS(V8)-J17-K17,ROUND(L8/$N8*ABS($V8),0))) ->  | M17: =IF($V8>=0," ",IF(Data!B5=0,0,ABS($V8)-SUM(J17:L17))) ->  | N17: =SUM(J17:M17) -> 0 | P17: =P8 -> 0 | S17: =IF($V8<=0," ",IF(Data!B5=0,V8-Q17-R17,ROUND(S8/$U8*$V8,0))) ->  | T17: =IF($V8<=0," ",IF(Data!B5=0,0,$V8-SUM(Q17:S17))) ->  | U17: =SUM(Q17:T17) -> 0
C18: 0.07 | F18: Side street | I18: =I9 -> 0 | L18: =IF($V9>=0," ",IF(Data!B5=0,ABS(V9)-J18-K18,ROUND(L9/$N9*ABS($V9),0))) ->  | M18: =IF($V9>=0," ",IF(Data!B5=0,0,ABS($V9)-SUM(J18:L18))) ->  | N18: =SUM(J18:M18) -> 0 | P18: =P9 -> 0 | S18: =IF($V9<=0," ",IF(Data!B5=0,V9-Q18-R18,ROUND(S9/$U9*$V9,0))) ->  | T18: =IF($V9<=0," ",IF(Data!B5=0,0,$V9-SUM(Q18:S18))) ->  | U18: =SUM(Q18:T18) -> 0
E19: =IF(Data!B1="no","Northbound (NB)","Westbound (WB)") -> Northbound (NB) | F19: 0.5 | I19: =I10 -> 0 | L19: =IF($V10>=0," ",IF(Data!B5=0,V10-J19-K19,ROUND(L10/$N10*$V10,0))) ->  | M19: =IF($V10>=0," ",IF(Data!B5=0,0,ABS($V10)-SUM(J19:L19))) ->  | N19: =SUM(J19:M19) -> 0 | P19: =P10 -> 0 | S19: =IF($V10<=0," ",IF(Data!B5=0,V10-Q19-R19,ROUND(S10/$U10*$V10,0))) ->  | T19: =IF($V10<=0," ",IF(Data!B5=0,0,$V10-SUM(Q19:S19))) ->  | U19: =SUM(Q19:T19) -> 0
E20: =IF(Data!B1="no","Southbound (SB)","Eastbound (EB)") -> Southbound (SB) | F20: 0.5
I21: Step 3a | J21: Final Approach Volumes | P21: Step 3b | Q21: Final Departure Volumes | V21: Difference between Senter and Sexit. Should be 0 on this step.
J22: From West: | K22: From East: | L22: From North: | M22: From South: | Q22: To West: | R22: To East: | S22: To North: | T22: To South:
A23: Do you have FTSUTMS Model Year traffic from which you would like to | I23: Year | J23: EB Approach | K23: WB Approach | L23: SB Approach | M23: NB Approach | N23: TOTAL | P23: Year | Q23: WB Departure | R23: EB Departure | S23: NB Departure | T23: SB Departure | U23: TOTAL | W23: Senter=Sexit?
B24: interpolate/extrapolate for project years? (Y/N) | I24: =I7 -> 0 | J24: =IF(J16=" ",J7,J7+ABS(J16)) -> 0 | K24: 0 | L24: 0 | M24: 0 | N24: =SUM(J24:M24) -> 0 | P24: =P7 -> 0 | Q24: =IF(Q16=" ",Q7,Q7+Q16) -> 0 | R24: 0 | S24: 0 | T24: 0 | U24: =SUM(Q24:T24) -> 0 | V24: =N24-U24 -> 0 | W24: =IF(N24=U24,"Yes","No") -> Yes
I25: =I8 -> 0 | J25: 0 | K25: 0 | L25: 0 | M25: 0 | N25: =SUM(J25:M25) -> 0 | P25: =P8 -> 0 | Q25: 0 | R25: 0 | S25: 0 | T25: 0 | U25: =SUM(Q25:T25) -> 0 | V25: =N25-U25 -> 0 | W25: =IF(N25=U25,"Yes","No") -> Yes
E26: If "Yes" go to cell C47 | G26: If "No" go to cell C31 | I26: =I9 -> 0 | J26: 0 | K26: 0 | L26: 0 | M26: 0 | N26: =SUM(J26:M26) -> 0 | P26: =P9 -> 0 | Q26: 0 | R26: 0 | S26: 0 | T26: 0 | U26: =SUM(Q26:T26) -> 0 | V26: =N26-U26 -> 0 | W26: =IF(N26=U26,"Yes","No") -> Yes
I27: =I10 -> 0 | J27: 0 | K27: 0 | L27: 0 | M27: 0 | N27: =SUM(J27:M27) -> 0 | P27: =P10 -> 0 | Q27: 0 | R27: 0 | S27: 0 | T27: 0 | U27: =SUM(Q27:T27) -> 0 | V27: =N27-U27 -> 0 | W27: =IF(N27=U27,"Yes","No") -> Yes
B29: Enter Year and Growth Rates from Base Year:
C30: Year | D30: Rate | E30: (1.0% = 0.01)
B31: Base | D31: Mainline | E31: Side Street
B32: Opening
B33: Mid
B34: Design
I35: Linear Calcs
B37: Enter Base Year AADTs for Volume Comparison: | O37: Diagram to accompany above tables nomenclature
C38: (growth rates are used to calculate other project years)
I39: Calculated by Extrapolation using Rates
B40: From West: | C40: From East: | D40: From North: | E40: From South: | J40: From West: | K40: From East: | L40: From North: | M40: From South:
B41: EB Approach | C41: WB Approach | D41: SB Approach | E41: NB Approach | F41: TOTAL | I41: Year | J41: EB Approach | K41: WB Approach | L41: SB Approach | M41: NB Approach | N41: TOTAL
B42: 0 | C42: 0 | D42: 0 | E42: 0 | F42: =SUM(B42:E42) -> 0 | I42: =C31 -> 0 | J42: =B42 -> 0 | K42: =C42 -> 0 | L42: =D42 -> 0 | M42: =E42 -> 0 | N42: =SUM(J42:M42) -> 0
I43: =C32 -> 0 | J43: =J42*(1+J47*($I43-$I42)) -> 0 | K43: =K42*(1+K47*($I43-$I42)) -> 0 | L43: =L42*(1+L47*($I43-$I42)) -> 0 | M43: =M42*(1+M47*($I43-$I42)) -> 0 | N43: =SUM(J43:M43) -> 0
I44: =C33 -> 0 | J44: =J42*(1+J47*($I44-$I42)) -> 0 | K44: =K42*(1+K47*($I44-$I42)) -> 0 | L44: =L42*(1+L47*($I44-$I42)) -> 0 | M44: =M42*(1+M47*($I44-$I42)) -> 0 | N44: =SUM(J44:M44) -> 0
B45: Enter Project and Model Years | I45: =C34 -> 0 | J45: =J42*(1+J47*($I45-$I42)) -> 0 | K45: =K42*(1+K47*($I45-$I42)) -> 0 | L45: =L42*(1+L47*($I45-$I42)) -> 0 | M45: =M42*(1+M47*($I45-$I42)) -> 0 | N45: =SUM(J45:M45) -> 0
C46: Year
B47: Base | I47: Rates | J47: =IF(Data!$B$1="yes",E32,D32) -> 0 | K47: =IF(Data!$B$1="yes",E32,D32) -> 0 | L47: =IF(Data!$B$1="yes",D32,E32) -> 0 | M47: =IF(Data!$B$1="yes",D32,E32) -> 0
B48: Opening
B49: Mid
B50: Design
B51: Model
B53: Enter Base and Model Year AADTs for Volume Comparison: | I53: Calculated by Interpolation Using Model Output
C54: (volumes for other project years are calculated by interpolation) | J54: From West: | K54: From East: | L54: From North: | M54: From South:
I55: Year | J55: EB Approach | K55: WB Approach | L55: SB Approach | M55: NB Approach | N55: TOTAL
B56: From West: | C56: From East: | D56: From North: | E56: From South: | I56: =C47 -> 0 | J56: =B58 -> 0 | K56: =C58 -> 0 | L56: =D58 -> 0 | M56: =E58 -> 0 | N56: =SUM(J56:M56) -> 0
B57: EB Approach | C57: WB Approach | D57: SB Approach | E57: NB Approach | F57: TOTAL | I57: =C48 -> 0 | J57: =($I57-$I$56)/($C$51-$I$56)*(B$59-B$58)+J$56 ->  | L57: =($I57-$I$56)/($C$51-$I$56)*(D$59-D$58)+L$56 ->  | N57: =SUM(J57:M57) -> 
A58: =C47 -> 0 | B58: 0 | C58: 0 | D58: 0 | E58: 0 | F58: =SUM(B58:E58) -> 0 | I58: =C49 -> 0 | N58: =SUM(J58:M58) -> 
A59: =C51 -> 0 | B59: 0 | C59: 0 | D59: 0 | E59: 0 | F59: =SUM(B59:E59) -> 0 | I59: =C50 -> 0 | N59: =SUM(J59:M59) -> 
C62: 1st Guess | E62: =" Actual/Counted" -> Actual/Counted | G62: First Guess Turning % Option Used | I62: Exponential Calcs
C63: Turning %'s for | E63: =" Traffic" -> Traffic | G63: Existing Turning Movement Counts
C64: AADT Balancing | E64: =" for "&IF(Data!B2="yes",C47,C31) -> for
B65: (EB LT) | C65: West-to-North | E65: 0
B66: (EB THRU) | C66: West-to-East | E66: 0 | I66: Calculated by Extrapolation using Rates
B67: (EB RT) | C67: West-to-South | E67: 0 | J67: From West: | K67: From East: | L67: From North: | M67: From South:
I68: Year | J68: EB Approach | K68: WB Approach | L68: SB Approach | M68: NB Approach | N68: TOTAL
B69: (WB LT) | C69: East-to-South | E69: 0 | I69: =C31 -> 0 | J69: =B42 -> 0 | K69: =C42 -> 0 | L69: =D42 -> 0 | M69: =E42 -> 0 | N69: =SUM(J69:M69) -> 0
B70: (WB THRU) | C70: East-to-West | E70: 0 | I70: =C32 -> 0 | J70: =J69*(1+J74)^($I70-$I69) -> 0 | K70: =K69*(1+K74)^($I70-$I69) -> 0 | L70: =L69*(1+L74)^($I70-$I69) -> 0 | M70: =M69*(1+M74)^($I70-$I69) -> 0 | N70: =SUM(J70:M70) -> 0
B71: (WB RT) | C71: East-to-North | E71: 0 | I71: =C33 -> 0 | J71: =J69*(1+J74)^($I71-$I69) -> 0 | K71: =K69*(1+K74)^($I71-$I69) -> 0 | L71: =L69*(1+L74)^($I71-$I69) -> 0 | M71: =M69*(1+M74)^($I71-$I69) -> 0 | N71: =SUM(J71:M71) -> 0
I72: =C34 -> 0 | J72: =J69*(1+J74)^($I72-$I69) -> 0 | K72: =K69*(1+K74)^($I72-$I69) -> 0 | L72: =L69*(1+L74)^($I72-$I69) -> 0 | M72: =M69*(1+M74)^($I72-$I69) -> 0 | N72: =SUM(J72:M72) -> 0
B73: (SB LT) | C73: North-to-East | E73: 0
B74: (SB THRU) | C74: North-to-South | E74: 0 | I74: Rates | J74: =IF(Data!$B$1="yes",E32,D32) -> 0 | K74: =IF(Data!$B$1="yes",E32,D32) -> 0 | L74: =IF(Data!$B$1="yes",D32,E32) -> 0 | M74: =IF(Data!$B$1="yes",D32,E32) -> 0
B75: (SB RT) | C75: North-to-West | E75: 0
B77: (NB LT) | C77: South-to-West | E77: 0
B78: (NB THRU) | C78: South-to-North | E78: 0
B79: (NB RT) | C79: South-to-East | E79: 0
I80: Calculated by Interpolation Using Model Output
B81: Desired Closure: | D81: 0.01 | J81: From West: | K81: From East: | L81: From North: | M81: From South:
I82: Year | J82: EB Approach | K82: WB Approach | L82: SB Approach | M82: NB Approach | N82: TOTAL
I83: =C47 -> 0 | J83: =B58 -> 0 | K83: =C58 -> 0 | L83: =D58 -> 0 | M83: =E58 -> 0 | N83: =SUM(J83:M83) -> 0
I84: =C48 -> 0 | J84: =J$83*(1+((J$86-J$83)/J$83+1)^(1/($I$86-$I$83))-1)^($I84-$I$83) ->  | K84: =K$83*(1+((K$86-K$83)/K$83+1)^(1/($I$86-$I$83))-1)^($I84-$I$83) ->  | N84: =SUM(J84:M84) -> 
I85: =C49 -> 0 | J85: =J$83*(1+((J$86-J$83)/J$83+1)^(1/($I$86-$I$83))-1)^($I85-$I$83) ->  | N85: =SUM(J85:M85) -> 
I86: =C50 -> 0 | J86: =($I86-$I$56)/($C$51-$I$56)*(B$59-B$58)+J$56 ->  | K86: =($I86-$I$56)/($C$51-$I$56)*(C$59-C$58)+K$56 ->  | L86: =($I86-$I$56)/($C$51-$I$56)*(D$59-D$58)+L$56 ->  | M86: =($I86-$I$56)/($C$51-$I$56)*(E$59-E$58)+M$56 ->  | N86: =SUM(J86:M86) -> 
I89: Decaying Exponential (Logarithmic) Calcs
I93: Calculated by Extrapolation using Rates
J94: From West: | K94: From East: | L94: From North: | M94: From South:
I95: Year | J95: EB Approach | K95: WB Approach | L95: SB Approach | M95: NB Approach | N95: TOTAL
I96: =C31 -> 0 | J96: =B42 -> 0 | K96: =C42 -> 0 | L96: =D42 -> 0 | M96: =E42 -> 0 | N96: =SUM(J96:M96) -> 0
I97: =C32 -> 0 | J97: =J$104 * LOG($I97-$I$96 + 1)+J$96 ->  | K97: =K$104 * LOG($I97-$I$96 + 1)+K$96 ->  | N97: =SUM(J97:M97) -> 
I98: =C33 -> 0 | J98: =J$104 * LOG($I98-$I$96 + 1)+J$96 ->  | N98: =SUM(J98:M98) -> 
I99: =C34 -> 0 | J99: =J$104 * LOG($I99-$I$96 + 1)+J$96 ->  | N99: =SUM(J99:M99) -> 
I101: Linear Rate | J101: =IF(Data!$B$1="yes",$E32,$D32) -> 0 | K101: =IF(Data!$B$1="yes",$E32,$D32) -> 0 | L101: =IF(Data!$B$1="yes",$E32,$D32) -> 0 | M101: =IF(Data!$B$1="yes",$E32,$D32) -> 0
I102: Out Year (y2) | J102: =J96*J101*($I99-$I96)+J96 -> 0 | K102: =K96*K101*($I99-$I96)+K96 -> 0 | L102: =L96*L101*($I99-$I96)+L96 -> 0 | M102: =M96*M101*($I99-$I96)+M96 -> 0
I103: In Year (y1) | J103: =J96 -> 0 | K103: =K96 -> 0 | L103: =L96 -> 0 | M103: =M96 -> 0
I104: b | J104: =(J102-J103)/LOG($I99-$I96+1) ->  | K104: =(K102-K103)/LOG($I99-$I96+1) ->  | L104: =(L102-L103)/LOG($I99-$I96+1) ->  | M104: =(M102-M103)/LOG($I99-$I96+1) -> 
I107: Calculated by Interpolation Using Model Output
J108: From West: | K108: From East: | L108: From North: | M108: From South:
I109: Year | J109: EB Approach | K109: WB Approach | L109: SB Approach | M109: NB Approach | N109: TOTAL
I110: =C47 -> 0 | J110: =J83 -> 0 | K110: =K83 -> 0 | L110: =L83 -> 0 | M110: =M83 -> 0 | N110: =SUM(J110:M110) -> 0
I111: =C48 -> 0 | J111: =J$119+J$121*LN($I111-$I$110+1) ->  | N111: =SUM(J111:M111) -> 
I112: =C49 -> 0 | N112: =SUM(J112:M112) -> 
I113: =C50 -> 0 | N113: =SUM(J113:M113) -> 
J115: y1=a+b*ln x1 | K115: x1= | L115: 1 | M115: y1= | N115: row 110 values
J116: y2=a+b*ln x2 | K116: x2= | L116: =$C$51-I110+1 -> 1 | M116: y2= | N116: row 59 values
J117: ="n = year - " &I110 -> n = year - 0
J118: b=(y2-y1)/(ln(x2))
I119: y1=a= | J119: =J110 -> 0 | K119: =K110 -> 0 | L119: =L110 -> 0 | M119: =M110 -> 0
I120: y2-y1 | J120: =B59-J110 -> 0 | K120: =C59-K110 -> 0 | L120: =D59-L110 -> 0 | M120: =E59-M110 -> 0
I121: b | J121: =J120/LN($L$116) ->  | K121: =K120/LN($L$116) ->  | L121: =L120/LN($L$116) ->  | M121: =M120/LN($L$116) -> 

Sheet Calcs
A1: TURNFLOW - Intersection Turning Movement Program
A2: (c) Mark C. Schaefer, May 1988, Version 1.00
A4: Modified to Version 4.00, 10/95
A5: by Susan C. Newman / Richard Oujevolk - TEI Orlando, FL
A6: Adapted to Windows 2000, Windows XP, Microsoft Excel2003 by Mike Phillips and Loren Bloomberg CH2M HILL 5/2005
A7: Adapted to accept 3-way intersections by Amanda Schram and Nicholi Arnio RS&H 1/2014
A8: NOTE TO USERS: | L8: The total traffic into the intersection from approach i
L9: The total flow out of the intersection to approach j
A10: PURPOSE: | B10: This program computes a likely set of intersection turning movements | L10: The total traffic flow from approach i to approach j (i.e. the turning movement from approach i to approach j)
B11: from intersection approach counts and the user's "best guess" of the | L11: The proportion of the approach i traffic flow that turns in the direction of j
B12: turning proportions from each approach. | L12: The sum of entering flows (equals exiting flows)
L13: The number of intersection approaches
A14: REFERENCE: | B14: E. Hauer, E. Pagitsas, and B.T. Shin. "Estimation of Turning Flows
B15: from Automatic Counts". Transportation Research Record #795. 1981.
A17: Following are the calculations of the algorithm which produce the output summary table.
A18: The spreadsheet offers no new theory to that proposed in the technical reference identified
A19: above. Users are advised against customizing the spreadsheet since changes may affect
A20: the correct functioning of the macros built into the spreadsheet.
A28: BASE YEAR CALCULATIONS: | C28: =InputSheet!I7 -> 0
B29: ORIGINAL | C29: ADJUSTED
A30: eb A1 = | B30: =InputSheet!J24/SQRT(InputSheet!N24) ->  | C30: 33.74684846 | D30: These cells are updated by the macro code - do not protect this range or enter any data in them.
A31: wb A2 = | B31: =InputSheet!K24/SQRT(InputSheet!N24) ->  | C31: 7.142942444
A32: sb A3 = | B32: =InputSheet!L24/SQRT(InputSheet!N24) ->  | C32: 7.026842437
A33: nb A4 = | B33: =InputSheet!M24/SQRT(InputSheet!N24) ->  | C33: 25.74828528
A35: COMPUTE Bj | B35: =C28 -> 0
A36: wb B1 = | B36: =IF(InputSheet!D$70*Calcs!C31+InputSheet!D$75*C32+InputSheet!D$77*C33=0,0,InputSheet!Q24/(InputSheet!D$70*Calcs!C31+InputSheet!D$75*C32+InputSheet!D$77*C33)) -> 0
A37: eb B2 = | B37: =IF(InputSheet!D$66*Calcs!C30+InputSheet!D$73*C32+InputSheet!D$79*C33=0,0,InputSheet!R24/(InputSheet!D$66*Calcs!C30+InputSheet!D$73*C32+InputSheet!D$79*C33)) -> 0
A38: nb B3 = | B38: =IF(InputSheet!D$65*Calcs!C30+InputSheet!D$71*C31+InputSheet!D$78*C33=0,0,InputSheet!S24/(InputSheet!D$65*Calcs!C30+InputSheet!D$71*C31+InputSheet!D$78*C33)) -> 0
A39: sb B4 = | B39: =IF(InputSheet!D$67*Calcs!C30+InputSheet!D$69*C31+InputSheet!D$74*C32=0,0,InputSheet!T24/(InputSheet!D$67*Calcs!C30+InputSheet!D$69*C31+InputSheet!D$74*C32)) -> 0
A41: COMPUTE Anew | B41: =B35 -> 0
A42: eb A1 = | B42: =IF(InputSheet!D$66*Calcs!B37+InputSheet!D$65*B38+InputSheet!D$67*B39=0,0,InputSheet!J24/(InputSheet!D$66*Calcs!B37+InputSheet!D$65*B38+InputSheet!D$67*B39)) -> 0
A43: wb A2 = | B43: =IF(InputSheet!D$70*Calcs!B36+InputSheet!D$71*B38+InputSheet!D$69*B39=0,0,InputSheet!K24/(InputSheet!D$70*Calcs!B36+InputSheet!D$71*B38+InputSheet!D$69*B39)) -> 0
A44: sb A3 = | B44: =IF(InputSheet!D$75*Calcs!B36+InputSheet!D$73*B37+InputSheet!D$74*B39=0,0,InputSheet!L24/(InputSheet!D$75*Calcs!B36+InputSheet!D$73*B37+InputSheet!D$74*B39)) -> 0
A45: nb A4 = | B45: =IF(InputSheet!D$77*Calcs!B36+InputSheet!D$79*B37+InputSheet!D$78*B38=0,0,InputSheet!M24/(InputSheet!D$77*Calcs!B36+InputSheet!D$79*B37+InputSheet!D$78*B38)) -> 0
A47: COMPUTE DIFFERENCE Acurrent - Anew
B48: ADJ. CURRENT | D48: ABS(DIFF) >
B49: - ANEW = | D49: CLOSURE | E49: FLAG
B50: DIFF | C50: ABS(DIFF) | D50: (1=TRUE) | E50: KEY
B51: =C30-B42 -> 33.74684846 | C51: =ABS(B51) -> 33.74684846 | D51: =IF(C51>InputSheet!$D$81,1,0) -> 1
B52: =C31-B43 -> 7.142942444 | C52: =ABS(B52) -> 7.142942444 | D52: =IF(C52>InputSheet!$D$81,1,0) -> 1
B53: =C32-B44 -> 7.026842437 | C53: =ABS(B53) -> 7.026842437 | D53: =IF(C53>InputSheet!$D$81,1,0) -> 1
B54: =C33-B45 -> 25.74828528 | C54: =ABS(B54) -> 25.74828528 | D54: =IF(C54>InputSheet!$D$81,1,0) -> 1
B55: Max of Abs= | C55: =MAX(C51:C54) -> 33.74684846 | D55: =MAX(D51:D54) -> 1 | E55: =IF(D55>0,1,0) -> 1
A57: COMPUTE TURNING MOVEMENTS
D58: Proportion
C59: =C28 -> 0 | D59: of Total
A60: T12 | B60: West-to-East | C60: =InputSheet!D66*Calcs!B42*Calcs!B37 -> 0 | D60: =IF(C63=0,0,C60/C63) -> 0
A61: T13 | B61: West-to-North | C61: =InputSheet!D65*Calcs!B42*Calcs!B38 -> 0 | D61: =IF(C63=0,0,C61/C63) -> 0
A62: T14 | B62: West-to-South | C62: =InputSheet!D67*Calcs!B42*Calcs!B39 -> 0 | D62: =IF(C63=0,0,C62/C63) -> 0
C63: =SUM(C60:C62) -> 0 | D63: 1
A65: T21 | B65: East-to-West | C65: =InputSheet!D70*Calcs!B43*Calcs!B36 -> 0 | D65: =IF(C68=0,0,C65/C68) -> 0
A66: T23 | B66: East-to-North | C66: =InputSheet!D71*Calcs!B43*Calcs!B38 -> 0 | D66: =IF(C68=0,0,C66/C68) -> 0
A67: T24 | B67: East-to-South | C67: =InputSheet!D69*Calcs!B43*Calcs!B39 -> 0 | D67: =IF(C68=0,0,C67/C68) -> 0
C68: =SUM(C65:C67) -> 0 | D68: 1
A70: T31 | B70: North-to-West | C70: =InputSheet!D75*Calcs!B44*Calcs!B36 -> 0 | D70: =IF(C73=0,0,C70/C73) -> 0
A71: T32 | B71: North-to-East | C71: =InputSheet!D73*Calcs!B44*Calcs!B37 -> 0 | D71: =IF(C73=0,0,C71/C73) -> 0
A72: T34 | B72: North-to-South | C72: =InputSheet!D74*Calcs!B44*Calcs!B39 -> 0 | D72: =IF(C73=0,0,C72/C73) -> 0
C73: =SUM(C70:C72) -> 0 | D73: 1
A75: T41 | B75: South-to-West | C75: =InputSheet!D77*Calcs!B45*Calcs!B36 -> 0 | D75: =IF(C78=0,0,C75/C78) -> 0
A76: T42 | B76: South-to-East | C76: =InputSheet!D79*Calcs!B45*Calcs!B37 -> 0 | D76: =IF(C78=0,0,C76/C78) -> 0
A77: T43 | B77: South-to-North | C77: =InputSheet!D78*Calcs!B45*Calcs!B38 -> 0 | D77: =IF(C78=0,0,C77/C78) -> 0
C78: =SUM(C75:C77) -> 0 | D78: 1
A108: OPENING YEAR CALCULATIONS: | C108: =InputSheet!I8 -> 0
B109: ORIGINAL | C109: ADJUSTED
A110: eb A1 = | B110: =InputSheet!J25/SQRT(InputSheet!N25) ->  | C110: 36.05125747 | D110: These cells are updated by the macro code - do not protect this range or enter any data in them.
A111: wb A2 = | B111: =InputSheet!K25/SQRT(InputSheet!N25) ->  | C111: 7.634539866
A112: sb A3 = | B112: =InputSheet!L25/SQRT(InputSheet!N25) ->  | C112: 7.189167769
A113: nb A4 = | B113: =InputSheet!M25/SQRT(InputSheet!N25) ->  | C113: 26.46875401
A115: COMPUTE Bj | B115: =C108 -> 0
A116: wb B1 = | B116: =IF(InputSheet!D$70*Calcs!C111+InputSheet!D$75*C112+InputSheet!D$77*C113=0,0,InputSheet!Q25/(InputSheet!D$70*Calcs!C111+InputSheet!D$75*C112+InputSheet!D$77*C113)) -> 0
A117: eb B2 = | B117: =IF(InputSheet!D$66*Calcs!C110+InputSheet!D$73*C112+InputSheet!D$79*C113=0,0,InputSheet!R25/(InputSheet!D$66*Calcs!C110+InputSheet!D$73*C112+InputSheet!D$79*C113)) -> 0
A118: nb B3 = | B118: =IF(InputSheet!D$65*Calcs!C110+InputSheet!D$71*C111+InputSheet!D$78*C113=0,0,InputSheet!S25/(InputSheet!D$65*Calcs!C110+InputSheet!D$71*C111+InputSheet!D$78*C113)) -> 0
A119: sb B4 = | B119: =IF(InputSheet!D$67*Calcs!C110+InputSheet!D$69*C111+InputSheet!D$74*C112=0,0,InputSheet!T25/(InputSheet!D$67*Calcs!C110+InputSheet!D$69*C111+InputSheet!D$74*C112)) -> 0
A121: COMPUTE Anew | B121: =B115 -> 0
A122: eb A1 = | B122: =IF(InputSheet!D$66*Calcs!B117+InputSheet!D$65*B118+InputSheet!D$67*B119=0,0,InputSheet!J25/(InputSheet!D$66*Calcs!B117+InputSheet!D$65*B118+InputSheet!D$67*B119)) -> 0
A123: wb A2 = | B123: =IF(InputSheet!D$70*Calcs!B116+InputSheet!D$71*B118+InputSheet!D$69*B119=0,0,InputSheet!K25/(InputSheet!D$70*Calcs!B116+InputSheet!D$71*B118+InputSheet!D$69*B119)) -> 0
A124: sb A3 = | B124: =IF(InputSheet!D$75*Calcs!B116+InputSheet!D$73*B117+InputSheet!D$74*B119=0,0,InputSheet!L25/(InputSheet!D$75*Calcs!B116+InputSheet!D$73*B117+InputSheet!D$74*B119)) -> 0
A125: nb A4 = | B125: =IF(InputSheet!D$77*Calcs!B116+InputSheet!D$79*B117+InputSheet!D$78*B118=0,0,InputSheet!M25/(InputSheet!D$77*Calcs!B116+InputSheet!D$79*B117+InputSheet!D$78*B118)) -> 0
A127: COMPUTE DIFFERENCE Acurrent - Anew
B128: ADJ. CURRENT | D128: ABS(DIFF) >
B129: - ANEW = | D129: CLOSURE | E129: FLAG
B130: DIFF | C130: ABS(DIFF) | D130: (1=TRUE) | E130: KEY
B131: =C110-B122 -> 36.05125747 | C131: =ABS(B131) -> 36.05125747 | D131: =IF(C131>InputSheet!$D$81,1,0) -> 1
B132: =C111-B123 -> 7.634539866 | C132: =ABS(B132) -> 7.634539866 | D132: =IF(C132>InputSheet!$D$81,1,0) -> 1
B133: =C112-B124 -> 7.189167769 | C133: =ABS(B133) -> 7.189167769 | D133: =IF(C133>InputSheet!$D$81,1,0) -> 1
B134: =C113-B125 -> 26.46875401 | C134: =ABS(B134) -> 26.46875401 | D134: =IF(C134>InputSheet!$D$81,1,0) -> 1
B135: Max of Abs= | C135: =MAX(C131:C134) -> 36.05125747 | D135: =MAX(D131:D134) -> 1 | E135: =IF(D135>0,1,0) -> 1
A137: COMPUTE TURNING MOVEMENTS
D138: Proportion
C139: =C108 -> 0 | D139: of Total
A140: T12 | B140: West-to-East | C140: =InputSheet!D$66*Calcs!B122*Calcs!B117 -> 0 | D140: =IF(C143=0,0,C140/C143) -> 0
A141: T13 | B141: West-to-North | C141: =InputSheet!D$65*Calcs!B122*Calcs!B118 -> 0 | D141: =IF(C143=0,0,C141/C143) -> 0
A142: T14 | B142: West-to-South | C142: =InputSheet!D$67*Calcs!B122*Calcs!B119 -> 0 | D142: =IF(C143=0,0,C142/C143) -> 0
C143: =SUM(C140:C142) -> 0 | D143: 1
A145: T21 | B145: East-to-West | C145: =InputSheet!D$70*Calcs!B123*Calcs!B116 -> 0 | D145: =IF(C148=0,0,C145/C148) -> 0
A146: T23 | B146: East-to-North | C146: =InputSheet!D$71*Calcs!B123*Calcs!B118 -> 0 | D146: =IF(C148=0,0,C146/C148) -> 0
A147: T24 | B147: East-to-South | C147: =InputSheet!D$69*Calcs!B123*Calcs!B119 -> 0 | D147: =IF(C148=0,0,C147/C148) -> 0
C148: =SUM(C145:C147) -> 0 | D148: 1
A150: T31 | B150: North-to-West | C150: =InputSheet!D$75*Calcs!B124*Calcs!B116 -> 0 | D150: =IF(C153=0,0,C150/C153) -> 0
A151: T32 | B151: North-to-East | C151: =InputSheet!D$73*Calcs!B124*Calcs!B117 -> 0 | D151: =IF(C153=0,0,C151/C153) -> 0
A152: T34 | B152: North-to-South | C152: =InputSheet!D$74*Calcs!B124*Calcs!B119 -> 0 | D152: =IF(C153=0,0,C152/C153) -> 0
C153: =SUM(C150:C152) -> 0 | D153: 1
A155: T41 | B155: South-to-West | C155: =InputSheet!D$77*Calcs!B125*Calcs!B116 -> 0 | D155: =IF(C158=0,0,C155/C158) -> 0
A156: T42 | B156: South-to-East | C156: =InputSheet!D$79*Calcs!B125*Calcs!B117 -> 0 | D156: =IF(C158=0,0,C156/C158) -> 0
A157: T43 | B157: South-to-North | C157: =InputSheet!D$78*Calcs!B125*Calcs!B118 -> 0 | D157: =IF(C158=0,0,C157/C158) -> 0
C158: =SUM(C155:C157) -> 0 | D158: 1
A188: MID-YEAR CALCULATIONS: | C188: =InputSheet!I9 -> 0
B189: ORIGINAL | C189: ADJUSTED
A190: eb A1 = | B190: =InputSheet!J26/SQRT(InputSheet!N26) ->  | C190: 38.75706 | D190: These cells are updated by the macro code - do not protect this range or enter any data in them.
A191: wb A2 = | B191: =InputSheet!K26/SQRT(InputSheet!N26) ->  | C191: 8.194701661
A192: sb A3 = | B192: =InputSheet!L26/SQRT(InputSheet!N26) ->  | C192: 7.400224819
A193: nb A4 = | B193: =InputSheet!M26/SQRT(InputSheet!N26) ->  | C193: 27.37455516
A195: COMPUTE Bj | B195: =C188 -> 0
A196: wb B1 = | B196: =IF(InputSheet!D$70*Calcs!C191+InputSheet!D$75*C192+InputSheet!D$77*C193=0,0,InputSheet!Q26/(InputSheet!D$70*Calcs!C191+InputSheet!D$75*C192+InputSheet!D$77*C193)) -> 0
A197: eb B2 = | B197: =IF(InputSheet!D$66*Calcs!C190+InputSheet!D$73*C192+InputSheet!D$79*C193=0,0,InputSheet!R26/(InputSheet!D$66*Calcs!C190+InputSheet!D$73*C192+InputSheet!D$79*C193)) -> 0
A198: nb B3 = | B198: =IF(InputSheet!D$65*Calcs!C190+InputSheet!D$71*C191+InputSheet!D$78*C193=0,0,InputSheet!S26/(InputSheet!D$65*Calcs!C190+InputSheet!D$71*C191+InputSheet!D$78*C193)) -> 0
A199: sb B4 = | B199: =IF(InputSheet!D$67*Calcs!C190+InputSheet!D$69*C191+InputSheet!D$74*C192=0,0,InputSheet!T26/(InputSheet!D$67*Calcs!C190+InputSheet!D$69*C191+InputSheet!D$74*C192)) -> 0
A201: COMPUTE Anew | B201: =B195 -> 0
A202: eb A1 = | B202: =IF(InputSheet!D$66*Calcs!B197+InputSheet!D$65*B198+InputSheet!D$67*B199=0,0,InputSheet!J26/(InputSheet!D$66*Calcs!B197+InputSheet!D$65*B198+InputSheet!D$67*B199)) -> 0
A203: wb A2 = | B203: =IF(InputSheet!D$70*Calcs!B196+InputSheet!D$71*B198+InputSheet!D$69*B199=0,0,InputSheet!K26/(InputSheet!D$70*Calcs!B196+InputSheet!D$71*B198+InputSheet!D$69*B199)) -> 0
A204: sb A3 = | B204: =IF(InputSheet!D$75*Calcs!B196+InputSheet!D$73*B197+InputSheet!D$74*B199=0,0,InputSheet!L26/(InputSheet!D$75*Calcs!B196+InputSheet!D$73*B197+InputSheet!D$74*B199)) -> 0
A205: nb A4 = | B205: =IF(InputSheet!D$77*Calcs!B196+InputSheet!D$79*B197+InputSheet!D$78*B198=0,0,InputSheet!M26/(InputSheet!D$77*Calcs!B196+InputSheet!D$79*B197+InputSheet!D$78*B198)) -> 0
A207: COMPUTE DIFFERENCE Acurrent - Anew
B208: ADJ. CURRENT | D208: ABS(DIFF) >
B209: - ANEW = | D209: CLOSURE | E209: FLAG
B210: DIFF | C210: ABS(DIFF) | D210: (1=TRUE) | E210: KEY
B211: =C190-B202 -> 38.75706 | C211: =ABS(B211) -> 38.75706 | D211: =IF(C211>InputSheet!$D$81,1,0) -> 1
B212: =C191-B203 -> 8.194701661 | C212: =ABS(B212) -> 8.194701661 | D212: =IF(C212>InputSheet!$D$81,1,0) -> 1
B213: =C192-B204 -> 7.400224819 | C213: =ABS(B213) -> 7.400224819 | D213: =IF(C213>InputSheet!$D$81,1,0) -> 1
B214: =C193-B205 -> 27.37455516 | C214: =ABS(B214) -> 27.37455516 | D214: =IF(C214>InputSheet!$D$81,1,0) -> 1
B215: Max of Abs= | C215: =MAX(C211:C214) -> 38.75706 | D215: =MAX(D211:D214) -> 1 | E215: =IF(D215>0,1,0) -> 1
A217: COMPUTE TURNING MOVEMENTS
D218: Proportion
C219: =C188 -> 0 | D219: of Total
A220: T12 | B220: West-to-East | C220: =InputSheet!D$66*Calcs!B202*Calcs!B197 -> 0 | D220: =IF(C223=0,0,C220/C223) -> 0
A221: T13 | B221: West-to-North | C221: =InputSheet!D$65*Calcs!B202*Calcs!B198 -> 0 | D221: =IF(C223=0,0,C221/C223) -> 0
A222: T14 | B222: West-to-South | C222: =InputSheet!D$67*Calcs!B202*Calcs!B199 -> 0 | D222: =IF(C223=0,0,C222/C223) -> 0
C223: =SUM(C220:C222) -> 0 | D223: 1
A225: T21 | B225: East-to-West | C225: =InputSheet!D$70*Calcs!B203*Calcs!B196 -> 0 | D225: =IF(C228=0,0,C225/C228) -> 0
A226: T23 | B226: East-to-North | C226: =InputSheet!D$71*Calcs!B203*Calcs!B198 -> 0 | D226: =IF(C228=0,0,C226/C228) -> 0
A227: T24 | B227: East-to-South | C227: =InputSheet!D$69*Calcs!B203*Calcs!B199 -> 0 | D227: =IF(C228=0,0,C227/C228) -> 0
C228: =SUM(C225:C227) -> 0 | D228: 1
A230: T31 | B230: North-to-West | C230: =InputSheet!D$75*Calcs!B204*Calcs!B196 -> 0 | D230: =IF(C233=0,0,C230/C233) -> 0
A231: T32 | B231: North-to-East | C231: =InputSheet!D$73*Calcs!B204*Calcs!B197 -> 0 | D231: =IF(C233=0,0,C231/C233) -> 0
A232: T34 | B232: North-to-South | C232: =InputSheet!D$74*Calcs!B204*Calcs!B199 -> 0 | D232: =IF(C233=0,0,C232/C233) -> 0
C233: =SUM(C230:C232) -> 0 | D233: 1
A235: T41 | B235: South-to-West | C235: =InputSheet!D$77*Calcs!B205*Calcs!B196 -> 0 | D235: =IF(C238=0,0,C235/C238) -> 0
A236: T42 | B236: South-to-East | C236: =InputSheet!D$79*Calcs!B205*Calcs!B197 -> 0 | D236: =IF(C238=0,0,C236/C238) -> 0
A237: T43 | B237: South-to-North | C237: =InputSheet!D$78*Calcs!B205*Calcs!B198 -> 0 | D237: =IF(C238=0,0,C237/C238) -> 0
C238: =SUM(C235:C237) -> 0 | D238: 1
A268: DESIGN YEAR CALCULATIONS: | C268: =InputSheet!I10 -> 0
B269: ORIGINAL | C269: ADJUSTED
A270: eb A1 = | B270: =InputSheet!J27/SQRT(InputSheet!N27) ->  | C270: 41.28912267 | D270: These cells are updated by the macro code - do not protect this range or enter any data in them.
A271: wb A2 = | B271: =InputSheet!K27/SQRT(InputSheet!N27) ->  | C271: 8.731568849
A272: sb A3 = | B272: =InputSheet!L27/SQRT(InputSheet!N27) ->  | C272: 7.599751867
A273: nb A4 = | B273: =InputSheet!M27/SQRT(InputSheet!N27) ->  | C273: 28.25862888
A275: COMPUTE Bj | B275: =C268 -> 0
A276: wb B1 = | B276: =IF(InputSheet!D$70*Calcs!C271+InputSheet!D$75*C272+InputSheet!D$77*C273=0,0,InputSheet!Q27/(InputSheet!D$70*Calcs!C271+InputSheet!D$75*C272+InputSheet!D$77*C273)) -> 0
A277: eb B2 = | B277: =IF(InputSheet!D$66*Calcs!C270+InputSheet!D$73*C272+InputSheet!D$79*C273=0,0,InputSheet!R27/(InputSheet!D$66*Calcs!C270+InputSheet!D$73*C272+InputSheet!D$79*C273)) -> 0
A278: nb B3 = | B278: =IF(InputSheet!D$65*Calcs!C270+InputSheet!D$71*C271+InputSheet!D$78*C273=0,0,InputSheet!S27/(InputSheet!D$65*Calcs!C270+InputSheet!D$71*C271+InputSheet!D$78*C273)) -> 0
A279: sb B4 = | B279: =IF(InputSheet!D$67*Calcs!C270+InputSheet!D$69*C271+InputSheet!D$74*C272=0,0,InputSheet!T27/(InputSheet!D$67*Calcs!C270+InputSheet!D$69*C271+InputSheet!D$74*C272)) -> 0
A281: COMPUTE Anew | B281: =B275 -> 0
A282: eb A1 = | B282: =IF(InputSheet!D$66*Calcs!B277+InputSheet!D$65*B278+InputSheet!D$67*B279=0,0,InputSheet!J27/(InputSheet!D$66*Calcs!B277+InputSheet!D$65*B278+InputSheet!D$67*B279)) -> 0
A283: wb A2 = | B283: =IF(InputSheet!D$70*Calcs!B276+InputSheet!D$71*B278+InputSheet!D$69*B279=0,0,InputSheet!K27/(InputSheet!D$70*Calcs!B276+InputSheet!D$71*B278+InputSheet!D$69*B279)) -> 0
A284: sb A3 = | B284: =IF(InputSheet!D$75*Calcs!B276+InputSheet!D$73*B277+InputSheet!D$74*B279=0,0,InputSheet!L27/(InputSheet!D$75*Calcs!B276+InputSheet!D$73*B277+InputSheet!D$74*B279)) -> 0
A285: nb A4 = | B285: =IF(InputSheet!D$77*Calcs!B276+InputSheet!D$79*B277+InputSheet!D$78*B278=0,0,InputSheet!M27/(InputSheet!D$77*Calcs!B276+InputSheet!D$79*B277+InputSheet!D$78*B278)) -> 0
A287: COMPUTE DIFFERENCE Acurrent - Anew
B288: ADJ. CURRENT | D288: ABS(DIFF) >
B289: - ANEW = | D289: CLOSURE | E289: FLAG
B290: DIFF | C290: ABS(DIFF) | D290: (1=TRUE) | E290: KEY
B291: =C270-B282 -> 41.28912267 | C291: =ABS(B291) -> 41.28912267 | D291: =IF(C291>InputSheet!$D$81,1,0) -> 1
B292: =C271-B283 -> 8.731568849 | C292: =ABS(B292) -> 8.731568849 | D292: =IF(C292>InputSheet!$D$81,1,0) -> 1
B293: =C272-B284 -> 7.599751867 | C293: =ABS(B293) -> 7.599751867 | D293: =IF(C293>InputSheet!$D$81,1,0) -> 1
B294: =C273-B285 -> 28.25862888 | C294: =ABS(B294) -> 28.25862888 | D294: =IF(C294>InputSheet!$D$81,1,0) -> 1
B295: Max of Abs= | C295: =MAX(C291:C294) -> 41.28912267 | D295: =MAX(D291:D294) -> 1 | E295: =IF(D295>0,1,0) -> 1
A297: COMPUTE TURNING MOVEMENTS
D298: Proportion
C299: =C268 -> 0 | D299: of Total
A300: T12 | B300: West-to-East | C300: =InputSheet!D$66*Calcs!B282*Calcs!B277 -> 0 | D300: =IF(C303=0,0,C300/C303) -> 0
A301: T13 | B301: West-to-North | C301: =InputSheet!D$65*Calcs!B282*Calcs!B278 -> 0 | D301: =IF(C303=0,0,C301/C303) -> 0
A302: T14 | B302: West-to-South | C302: =InputSheet!D$67*Calcs!B282*Calcs!B279 -> 0 | D302: =IF(C303=0,0,C302/C303) -> 0
C303: =SUM(C300:C302) -> 0 | D303: 1
A305: T21 | B305: East-to-West | C305: =InputSheet!D$70*Calcs!B283*Calcs!B276 -> 0 | D305: =IF(C308=0,0,C305/C308) -> 0
A306: T23 | B306: East-to-North | C306: =InputSheet!D$71*Calcs!B283*Calcs!B278 -> 0 | D306: =IF(C308=0,0,C306/C308) -> 0
A307: T24 | B307: East-to-South | C307: =InputSheet!D$69*Calcs!B283*Calcs!B279 -> 0 | D307: =IF(C308=0,0,C307/C308) -> 0
C308: =SUM(C305:C307) -> 0 | D308: 1
A310: T31 | B310: North-to-West | C310: =InputSheet!D$75*Calcs!B284*Calcs!B276 -> 0 | D310: =IF(C313=0,0,C310/C313) -> 0
A311: T32 | B311: North-to-East | C311: =InputSheet!D$73*Calcs!B284*Calcs!B277 -> 0 | D311: =IF(C313=0,0,C311/C313) -> 0
A312: T34 | B312: North-to-South | C312: =InputSheet!D$74*Calcs!B284*Calcs!B279 -> 0 | D312: =IF(C313=0,0,C312/C313) -> 0
C313: =SUM(C310:C312) -> 0 | D313: 1
A315: T41 | B315: South-to-West | C315: =InputSheet!D$77*Calcs!B285*Calcs!B276 -> 0 | D315: =IF(C318=0,0,C315/C318) -> 0
A316: T42 | B316: South-to-East | C316: =InputSheet!D$79*Calcs!B285*Calcs!B277 -> 0 | D316: =IF(C318=0,0,C316/C318) -> 0
A317: T43 | B317: South-to-North | C317: =InputSheet!D$78*Calcs!B285*Calcs!B278 -> 0 | D317: =IF(C318=0,0,C317/C318) -> 0
C318: =SUM(C315:C317) -> 0 | D318: 1

Sheet OutputSheet
A1: TURNS5 INITIAL TURNING VOLUME SUMMARY
B4: Highway: | D4: =InputSheet!C6 -> 0 | G4: County: | H4: =InputSheet!C10 -> 0
B5: Intersection: | D5: =InputSheet!C7 -> 0
B6: Project: | D6: =InputSheet!C8 -> 0 | G6: Analyst: | H6: =InputSheet!C4 -> 0
G7: Date: | H7: =InputSheet!C5 -> 2019-05-16T10:22:52.340
B10: =InputSheet!I7 -> 0 | C10: =B10 -> 0 | E10: =InputSheet!I8 -> 0 | G10: =InputSheet!I9 -> 0 | I10: =InputSheet!I10 -> 0
A11: Approach-To- | B11: Initial | C11: Final | D11: Calculated | E11: Final | F11: Calculated | G11: Final | H11: Calculated | I11: Final | J11: Calculated
A12: Approach | B12: Estimate | C12: Estimate | D12: Volume | E12: Estimate | F12: Volume | G12: Estimate | H12: Volume | I12: Estimate | J12: Volume
A14: West-To-North (LT) | B14: =InputSheet!D65 -> 0 | C14: =TurnSheets!C13 -> 0 | D14: =TurnSheets!D13 -> 0 | E14: =TurnSheets!P13 -> 0 | F14: =TurnSheets!Q13 -> 0 | G14: =TurnSheets!C33 -> 0 | H14: =TurnSheets!D33 -> 0 | I14: =TurnSheets!P33 -> 0 | J14: =TurnSheets!Q33 -> 0
A15: West-To-East (Thru) | B15: =InputSheet!D66 -> 0 | C15: =TurnSheets!C14 -> 0 | D15: =TurnSheets!D14 -> 0 | E15: =TurnSheets!P14 -> 0 | F15: =TurnSheets!Q14 -> 0 | G15: =TurnSheets!C34 -> 0 | H15: =TurnSheets!D34 -> 0 | I15: =TurnSheets!P34 -> 0 | J15: =TurnSheets!Q34 -> 0
A16: West-To-South (RT) | B16: =InputSheet!D67 -> 0 | C16: =TurnSheets!C15 -> 0 | D16: =TurnSheets!D15 -> 0 | E16: =TurnSheets!P15 -> 0 | F16: =TurnSheets!Q15 -> 0 | G16: =TurnSheets!C35 -> 0 | H16: =TurnSheets!D35 -> 0 | I16: =TurnSheets!P35 -> 0 | J16: =TurnSheets!Q35 -> 0
A18: Total Flow From West: | D18: =SUM(D14:D16) -> 0 | F18: =SUM(F14:F16) -> 0 | H18: =SUM(H14:H16) -> 0 | J18: =SUM(J14:J16) -> 0
A20: East-To-South (LT) | B20: =InputSheet!D69 -> 0 | C20: =TurnSheets!K12 -> 0 | D20: =TurnSheets!J12 -> 0 | E20: =TurnSheets!X12 -> 0 | F20: =TurnSheets!W12 -> 0 | G20: =TurnSheets!K32 -> 0 | H20: =TurnSheets!J32 -> 0 | I20: =TurnSheets!X32 -> 0 | J20: =TurnSheets!W32 -> 0
A21: East-To-West (Thru) | B21: =InputSheet!D70 -> 0 | C21: =TurnSheets!K11 -> 0 | D21: =TurnSheets!J11 -> 0 | E21: =TurnSheets!X11 -> 0 | F21: =TurnSheets!W11 -> 0 | G21: =TurnSheets!K31 -> 0 | H21: =TurnSheets!J31 -> 0 | I21: =TurnSheets!X31 -> 0 | J21: =TurnSheets!W31 -> 0
A22: East-To-North (RT) | B22: =InputSheet!D71 -> 0 | C22: =TurnSheets!K10 -> 0 | D22: =TurnSheets!J10 -> 0 | E22: =TurnSheets!X10 -> 0 | F22: =TurnSheets!W10 -> 0 | G22: =TurnSheets!K30 -> 0 | H22: =TurnSheets!J30 -> 0 | I22: =TurnSheets!X30 -> 0 | J22: =TurnSheets!W30 -> 0
A24: Total Flow From East: | D24: =SUM(D20:D22) -> 0 | F24: =SUM(F20:F22) -> 0 | H24: =SUM(H20:H22) -> 0 | J24: =SUM(J20:J22) -> 0
A26: North-To-East (LT) | B26: =InputSheet!D73 -> 0 | C26: =TurnSheets!G7 -> 0 | D26: =TurnSheets!G8 -> 0 | E26: =TurnSheets!T7 -> 0 | F26: =TurnSheets!T8 -> 0 | G26: =TurnSheets!G27 -> 0 | H26: =TurnSheets!G28 -> 0 | I26: =TurnSheets!T27 -> 0 | J26: =TurnSheets!T28 -> 0
A27: North-To-South (Thru) | B27: =InputSheet!D74 -> 0 | C27: =TurnSheets!F7 -> 0 | D27: =TurnSheets!F8 -> 0 | E27: =TurnSheets!S7 -> 0 | F27: =TurnSheets!S8 -> 0 | G27: =TurnSheets!F27 -> 0 | H27: =TurnSheets!F28 -> 0 | I27: =TurnSheets!S27 -> 0 | J27: =TurnSheets!S28 -> 0
A28: North-To-West (RT) | B28: =InputSheet!D75 -> 0 | C28: =TurnSheets!E7 -> 0 | D28: =TurnSheets!E8 -> 0 | E28: =TurnSheets!R7 -> 0 | F28: =TurnSheets!R8 -> 0 | G28: =TurnSheets!E27 -> 0 | H28: =TurnSheets!E28 -> 0 | I28: =TurnSheets!R27 -> 0 | J28: =TurnSheets!R28 -> 0
A30: Total Flow From North: | D30: =SUM(D26:D28) -> 0 | F30: =SUM(F26:F28) -> 0 | H30: =SUM(H26:H28) -> 0 | J30: =SUM(J26:J28) -> 0
A32: South-To-West (LT) | B32: =InputSheet!D77 -> 0 | C32: =TurnSheets!G19 -> 0 | D32: =TurnSheets!G18 -> 0 | E32: =TurnSheets!T19 -> 0 | F32: =TurnSheets!T18 -> 0 | G32: =TurnSheets!G39 -> 0 | H32: =TurnSheets!G38 -> 0 | I32: =TurnSheets!T39 -> 0 | J32: =TurnSheets!T38 -> 0
A33: South-To-North (Thru) | B33: =InputSheet!D78 -> 0 | C33: =TurnSheets!H19 -> 0 | D33: =TurnSheets!H18 -> 0 | E33: =TurnSheets!U19 -> 0 | F33: =TurnSheets!U18 -> 0 | G33: =TurnSheets!H39 -> 0 | H33: =TurnSheets!H38 -> 0 | I33: =TurnSheets!U39 -> 0 | J33: =TurnSheets!U38 -> 0
A34: South-To-East (RT) | B34: =InputSheet!D79 -> 0 | C34: =TurnSheets!I19 -> 0 | D34: =TurnSheets!I18 -> 0 | E34: =TurnSheets!V19 -> 0 | F34: =TurnSheets!V18 -> 0 | G34: =TurnSheets!I39 -> 0 | H34: =TurnSheets!I38 -> 0 | I34: =TurnSheets!V39 -> 0 | J34: =TurnSheets!V38 -> 0
A36: Total Flow From South: | D36: =SUM(D32:D34) -> 0 | F36: =SUM(F32:F34) -> 0 | H36: =SUM(H32:H34) -> 0 | J36: =SUM(J32:J34) -> 0

Sheet TurnSheets
B1: ="PROJECT TRAFFIC FOR "&InputSheet!$C$6&" AT "&InputSheet!$C$7&"" -> PROJECT TRAFFIC FOR AT
B3: ="DESIGN HOUR TURNING MOVEMENTS IN YEAR " &InputSheet!I7 -> DESIGN HOUR TURNING MOVEMENTS IN YEAR 0 | O3: ="DESIGN HOUR TURNING MOVEMENTS IN YEAR " &InputSheet!I8 -> DESIGN HOUR TURNING MOVEMENTS IN YEAR 0
D4: =IF(Data!$B$1="yes",InputSheet!$C$6,InputSheet!$C$7) -> 0 | Q4: =IF(Data!$B$1="yes",InputSheet!$C$6,InputSheet!$C$7) -> 0
F5: =IF(InputSheet!$AB7<1000,MROUND(-InputSheet!$AB7,-10),IF(InputSheet!$AB7>=10000,MROUND(-InputSheet!$AB7,-1000),MROUND(-InputSheet!$AB7,-100))) -> 0 | S5: =IF(InputSheet!$AB8<1000,MROUND(-InputSheet!$AB8,-10),IF(InputSheet!$AB8>=10000,MROUND(-InputSheet!$AB8,-1000),MROUND(-InputSheet!$AB8,-100))) -> 0
F6: =InputSheet!$L7 -> 0 | S6: =InputSheet!$L8 -> 0
E7: =IF(Data!$B$5=0,1-G7,ROUND(Calcs!D70,3)) -> 0 | F7: =IF(F6=0,0,IF(Data!$B$5=0,0,1-E7-G7)) -> 0 | G7: =ROUND(Calcs!D71,3) -> 0 | R7: =IF(Data!$B$5=0,1-T7,ROUND(Calcs!D150,3)) -> 0 | S7: =IF(S6=0,0,IF(Data!$B$5=0,0,1-R7-T7)) -> 0 | T7: =ROUND(Calcs!D151,3) -> 0
E8: =IF(Data!$B$5=0,F6-G8,ROUND(E7*$F$6,0)) -> 0 | F8: =IF(Data!$B$5=0,0,F6-E8-G8) -> 0 | G8: =ROUND(G7*$F$6,0) -> 0 | J8: =IF(Data!$B$1="yes",InputSheet!$C$7,InputSheet!$C$6) -> 0 | R8: =IF(Data!$B$5=0,S6-T8,ROUND(R7*$S$6,0)) -> 0 | S8: =IF(Data!$B$5=0,0,S6-R8-T8) -> 0 | T8: =ROUND(T7*$S$6,0) -> 0 | W8: =IF(Data!$B$1="yes",InputSheet!$C$7,InputSheet!$C$6) -> 0
J10: =IF(Data!$D$5=0,L11-J12,ROUND(K10*$L$11,0)) -> 0 | K10: =IF(Data!$D$5=0,1-K12,ROUND(Calcs!D66,3)) -> 0 | W10: =IF(Data!$D$5=0,Y11-W12,ROUND(X10*$Y$11,0)) -> 0 | X10: =IF(Data!$D$5=0,1-X12,ROUND(Calcs!D146,3)) -> 0
J11: =IF(Data!$D$5=0,0,L11-J10-J12) -> 0 | K11: =IF(L11=0,0,IF(Data!$D$5=0,0,1-K10-K12)) -> 0 | L11: =InputSheet!$K7 -> 0 | M11: =IF(InputSheet!$AA7<1000,MROUND(-InputSheet!$AA7,-10),IF(InputSheet!$AA7>=10000,MROUND(-InputSheet!$AA7,-1000),MROUND(-InputSheet!$AA7,-100))) -> 0 | W11: =IF(Data!$D$5=0,0,Y11-W10-W12) -> 0 | X11: =IF(Y11=0,0,IF(Data!$D$5=0,0,1-X10-X12)) -> 0 | Y11: =InputSheet!$K8 -> 0 | Z11: =IF(InputSheet!$AA8<1000,MROUND(-InputSheet!$AA8,-10),IF(InputSheet!$AA8>=10000,MROUND(-InputSheet!$AA8,-1000),MROUND(-InputSheet!$AA8,-100))) -> 0
J12: =ROUND(K12*$L$11,0) -> 0 | K12: =ROUND(Calcs!D67,3) -> 0 | W12: =ROUND(X12*$Y$11,0) -> 0 | X12: =ROUND(Calcs!D147,3) -> 0
C13: =ROUND(Calcs!D61,3) -> 0 | D13: =ROUND(C13*$B$14,0) -> 0 | P13: =ROUND(Calcs!D141,3) -> 0 | Q13: =ROUND(P13*$O$14,0) -> 0
A14: =IF(InputSheet!$Z7<1000,MROUND(-InputSheet!$Z7,-10),IF(InputSheet!$Z7>=10000,MROUND(-InputSheet!$Z7,-1000),MROUND(-InputSheet!$Z7,-100))) -> 0 | B14: =InputSheet!$J7 -> 0 | C14: =IF(B14=0,0,IF(Data!$E$5=0,0,1-C13-C15)) -> 0 | D14: =IF(Data!$E$5=0,0,B14-D13-D15) -> 0 | N14: =IF(InputSheet!$Z8<1000,MROUND(-InputSheet!$Z8,-10),IF(InputSheet!$Z8>=10000,MROUND(-InputSheet!$Z8,-1000),MROUND(-InputSheet!$Z8,-100))) -> 0 | O14: =InputSheet!$J8 -> 0 | P14: =IF(O14=0,0,IF(Data!$E$5=0,0,1-P13-P15)) -> 0 | Q14: =IF(Data!$E$5=0,0,O14-Q13-Q15) -> 0
C15: =IF(Data!$E$5=0,1-C13,ROUND(Calcs!D62,3)) -> 0 | D15: =IF(Data!$E$5=0,B14-D13,ROUND(C15*$B$14,0)) -> 0 | P15: =IF(Data!$E$5=0,1-P13,ROUND(Calcs!D142,3)) -> 0 | Q15: =IF(Data!$E$5=0,O14-Q13,ROUND(P15*$O$14,0)) -> 0
B17: =IF(Data!$B$1="yes",InputSheet!$C$7,InputSheet!$C$6) -> 0 | O17: =IF(Data!$B$1="yes",InputSheet!$C$7,InputSheet!$C$6) -> 0
G18: =ROUND(G19*$H$20,0) -> 0 | H18: =IF(Data!$C$5=0,0,H20-G18-I18) -> 0 | I18: =IF(Data!$C$5=0,H20-G18,ROUND(I19*$H$20,0)) -> 0 | L18: D Factors | T18: =ROUND(T19*$U$20,0) -> 0 | U18: =IF(Data!$C$5=0,0,U20-T18-V18) -> 0 | V18: =IF(Data!$C$5=0,U20-T18,ROUND(V19*$U$20,0)) -> 0 | Y18: D Factors
A19: (XXXXX) | B19: =InputSheet!$I$7&" AADT" -> 0 AADT | G19: =ROUND(Calcs!D75,3) -> 0 | H19: =IF(H20=0,0,IF(Data!$C$5=0,0,1-G19-I19)) -> 0 | I19: =IF(Data!$C$5=0,1-G19,ROUND(Calcs!D76,3)) -> 0 | L19: =IF(InputSheet!$F$16=0," ",TEXT(InputSheet!$F$16,"#.0%")&" "&MID(InputSheet!$E$16,LEN(InputSheet!$E$16)-2,2)) -> 50.0% WB | N19: (XXXXX) | O19: =InputSheet!$I$8&" AADT" -> 0 AADT | T19: =ROUND(Calcs!D155,3) -> 0 | U19: =IF(U20=0,0,IF(Data!$C$5=0,0,1-T19-V19)) -> 0 | V19: =IF(Data!$C$5=0,1-T19,ROUND(Calcs!D156,3)) -> 0 | Y19: =IF(InputSheet!$F$16=0," ",TEXT(InputSheet!$F$16,"#.0%")&" "&MID(InputSheet!$E$16,LEN(InputSheet!$E$16)-2,2)) -> 50.0% WB
A20: XXXX | B20: =InputSheet!$I$7&" DDHV" -> 0 DDHV | H20: =InputSheet!$M7 -> 0 | L20: =IF(InputSheet!$F$17=0," ",TEXT(InputSheet!$F$17,"#.0%")&" "&MID(InputSheet!$E$17,LEN(InputSheet!$E$17)-2,2)) -> 50.0% EB | N20: XXXX | O20: =InputSheet!$I$8&" DDHV" -> 0 DDHV | U20: =InputSheet!$M8 -> 0 | Y20: =IF(InputSheet!$F$17=0," ",TEXT(InputSheet!$F$17,"#.0%")&" "&MID(InputSheet!$E$17,LEN(InputSheet!$E$17)-2,2)) -> 50.0% EB
A21: K ML = | B21: =InputSheet!$C$16 -> 0.07 | H21: =IF(InputSheet!$AC7<1000,MROUND(-InputSheet!$AC7,-10),IF(InputSheet!$AC7>=10000,MROUND(-InputSheet!$AC7,-1000),MROUND(-InputSheet!$AC7,-100))) -> 0 | L21: =IF(InputSheet!$F$19=0," ",TEXT(InputSheet!$F$19,"#.0%")&" "&MID(InputSheet!$E$19,LEN(InputSheet!$E$19)-2,2)) -> 50.0% NB | N21: K ML = | O21: =InputSheet!$C$16 -> 0.07 | U21: =IF(InputSheet!$AC8<1000,MROUND(-InputSheet!$AC8,-10),IF(InputSheet!$AC8>=10000,MROUND(-InputSheet!$AC8,-1000),MROUND(-InputSheet!$AC8,-100))) -> 0 | Y21: =IF(InputSheet!$F$19=0," ",TEXT(InputSheet!$F$19,"#.0%")&" "&MID(InputSheet!$E$19,LEN(InputSheet!$E$19)-2,2)) -> 50.0% NB
A22: K SS = | B22: =InputSheet!$C$18 -> 0.07 | F22: =IF(Data!$B$1="yes",InputSheet!$C$6,InputSheet!$C$7) -> 0 | L22: =IF(InputSheet!$F$20=0," ",TEXT(InputSheet!$F$20,"#.0%")&" "&MID(InputSheet!$E$20,LEN(InputSheet!$E$20)-2,2)) -> 50.0% SB | N22: K SS = | O22: =InputSheet!$C$18 -> 0.07 | S22: =IF(Data!$B$1="yes",InputSheet!$C$6,InputSheet!$C$7) -> 0 | Y22: =IF(InputSheet!$F$20=0," ",TEXT(InputSheet!$F$20,"#.0%")&" "&MID(InputSheet!$E$20,LEN(InputSheet!$E$20)-2,2)) -> 50.0% SB
B23: ="DESIGN HOUR TURNING MOVEMENTS IN YEAR " &InputSheet!I9 -> DESIGN HOUR TURNING MOVEMENTS IN YEAR 0 | O23: ="DESIGN HOUR TURNING MOVEMENTS IN YEAR " &InputSheet!I10 -> DESIGN HOUR TURNING MOVEMENTS IN YEAR 0
D24: =IF(Data!$B$1="yes",InputSheet!$C$6,InputSheet!$C$7) -> 0 | Q24: =IF(Data!$B$1="yes",InputSheet!$C$6,InputSheet!$C$7) -> 0
F25: =IF(InputSheet!$AB9<1000,MROUND(-InputSheet!$AB9,-10),IF(InputSheet!$AB9>=10000,MROUND(-InputSheet!$AB9,-1000),MROUND(-InputSheet!$AB9,-100))) -> 0 | S25: =IF(InputSheet!$AB10<1000,MROUND(-InputSheet!$AB10,-10),IF(InputSheet!$AB10>=10000,MROUND(-InputSheet!$AB10,-1000),MROUND(-InputSheet!$AB10,-100))) -> 0
F26: =InputSheet!$L9 -> 0 | S26: =InputSheet!$L10 -> 0
E27: =IF(Data!$B$5=0,1-G27,ROUND(Calcs!D230,3)) -> 0 | F27: =IF(F26=0,0,IF(Data!$B$5=0,0,1-E27-G27)) -> 0 | G27: =ROUND(Calcs!D231,3) -> 0 | R27: =IF(Data!$B$5=0,1-T27,ROUND(Calcs!D310,3)) -> 0 | S27: =IF(S26=0,0,IF(Data!$B$5=0,0,1-R27-T27)) -> 0 | T27: =ROUND(Calcs!D311,3) -> 0
E28: =IF(Data!$B$5=0,F26-G28,ROUND(E27*$F$26,0)) -> 0 | F28: =IF(Data!$B$5=0,0,F26-E28-G28) -> 0 | G28: =ROUND(G27*$F$26,0) -> 0 | J28: =IF(Data!$B$1="yes",InputSheet!$C$7,InputSheet!$C$6) -> 0 | R28: =IF(Data!$B$5=0,S26-T28,ROUND(R27*$S$26,0)) -> 0 | S28: =IF(Data!$B$5=0,0,S26-R28-T28) -> 0 | T28: =ROUND(T27*$S$26,0) -> 0 | W28: =IF(Data!$B$1="yes",InputSheet!$C$7,InputSheet!$C$6) -> 0
J30: =IF(Data!$D$5=0,L31-J32,ROUND(K30*$L$31,0)) -> 0 | K30: =IF(Data!$D$5=0,1-K32,ROUND(Calcs!D226,3)) -> 0 | W30: =IF(Data!$D$5=0,Y31-W32,ROUND(X30*$Y$31,0)) -> 0 | X30: =IF(Data!$D$5=0,1-X32,ROUND(Calcs!D306,3)) -> 0
J31: =IF(Data!$D$5=0,0,L31-J30-J32) -> 0 | K31: =IF(L31=0,0,IF(Data!$D$5=0,0,1-K30-K32)) -> 0 | L31: =InputSheet!$K9 -> 0 | M31: =IF(InputSheet!$AA9<1000,MROUND(-InputSheet!$AA9,-10),IF(InputSheet!$AA9>=10000,MROUND(-InputSheet!$AA9,-1000),MROUND(-InputSheet!$AA9,-100))) -> 0 | W31: =IF(Data!$D$5=0,0,Y31-W30-W32) -> 0 | X31: =IF(Y31=0,0,IF(Data!$D$5=0,0,1-X30-X32)) -> 0 | Y31: =InputSheet!$K10 -> 0 | Z31: =IF(InputSheet!$AA10<1000,MROUND(-InputSheet!$AA10,-10),IF(InputSheet!$AA10>=10000,MROUND(-InputSheet!$AA10,-1000),MROUND(-InputSheet!$AA10,-100))) -> 0
J32: =ROUND(K32*$L$31,0) -> 0 | K32: =ROUND(Calcs!D227,3) -> 0 | W32: =ROUND(X32*$Y$31,0) -> 0 | X32: =ROUND(Calcs!D307,3) -> 0
C33: =ROUND(Calcs!D221,3) -> 0 | D33: =ROUND(C33*$B$34,0) -> 0 | P33: =ROUND(Calcs!D301,3) -> 0 | Q33: =ROUND($O$34*P33,0) -> 0
A34: =IF(InputSheet!$Z9<1000,MROUND(-InputSheet!$Z9,-10),IF(InputSheet!$Z9>=10000,MROUND(-InputSheet!$Z9,-1000),MROUND(-InputSheet!$Z9,-100))) -> 0 | B34: =InputSheet!$J9 -> 0 | C34: =IF(B34=0,0,IF(Data!$E$5=0,0,1-C33-C35)) -> 0 | D34: =IF(Data!$E$5=0,0,B34-D33-D35) -> 0 | N34: =IF(InputSheet!$Z10<1000,MROUND(-InputSheet!$Z10,-10),IF(InputSheet!$Z10>=10000,MROUND(-InputSheet!$Z10,-1000),MROUND(-InputSheet!$Z10,-100))) -> 0 | O34: =InputSheet!$J10 -> 0 | P34: =IF(O34=0,0,IF(Data!$E$5=0,0,1-P33-P35)) -> 0 | Q34: =IF(Data!$E$5=0,0,O34-Q33-Q35) -> 0
C35: =IF(Data!$E$5=0,1-C33,ROUND(Calcs!D222,3)) -> 0 | D35: =IF(Data!$E$5=0,B34-D33,ROUND(C35*$B$34,0)) -> 0 | P35: =IF(Data!$E$5=0,1-P33,ROUND(Calcs!D302,3)) -> 0 | Q35: =IF(Data!$E$5=0,O34-Q33,ROUND($O$34*P35,0)) -> 0
B37: =IF(Data!$B$1="yes",InputSheet!$C$7,InputSheet!$C$6) -> 0 | O37: =IF(Data!$B$1="yes",InputSheet!$C$7,InputSheet!$C$6) -> 0
G38: =ROUND(G39*$H$40,0) -> 0 | H38: =IF(Data!$C$5=0,0,H40-G38-I38) -> 0 | I38: =IF(Data!$C$5=0,H40-G38,ROUND(I39*$H$40,0)) -> 0 | L38: D Factors | T38: =ROUND(T39*$U$40,0) -> 0 | U38: =IF(Data!$C$5=0,0,U40-T38-V38) -> 0 | V38: =IF(Data!$C$5=0,U40-T38,ROUND(V39*$U$40,0)) -> 0 | Y38: D Factors
A39: (XXXXX) | B39: =InputSheet!$I$9&" AADT" -> 0 AADT | G39: =ROUND(Calcs!D235,3) -> 0 | H39: =IF(H40=0,0,IF(Data!$C$5=0,0,1-G39-I39)) -> 0 | I39: =IF(Data!$C$5=0,1-G39,ROUND(Calcs!D236,3)) -> 0 | L39: =IF(InputSheet!$F$16=0," ",TEXT(InputSheet!$F$16,"#.0%")&" "&MID(InputSheet!$E$16,LEN(InputSheet!$E$16)-2,2)) -> 50.0% WB | N39: (XXXXX) | O39: =InputSheet!$I$10&" AADT" -> 0 AADT | T39: =ROUND(Calcs!D315,3) -> 0 | U39: =IF(U40=0,0,IF(Data!$C$5=0,0,1-T39-V39)) -> 0 | V39: =IF(Data!$C$5=0,1-T39,ROUND(Calcs!D316,3)) -> 0 | Y39: =IF(InputSheet!$F$16=0," ",TEXT(InputSheet!$F$16,"#.0%")&" "&MID(InputSheet!$E$16,LEN(InputSheet!$E$16)-2,2)) -> 50.0% WB
A40: XXXX | B40: =InputSheet!$I$9&" DDHV" -> 0 DDHV | H40: =InputSheet!$M9 -> 0 | L40: =IF(InputSheet!$F$17=0," ",TEXT(InputSheet!$F$17,"#.0%")&" "&MID(InputSheet!$E$17,LEN(InputSheet!$E$17)-2,2)) -> 50.0% EB | N40: XXXX | O40: =InputSheet!$I$10&" DDHV" -> 0 DDHV | U40: =InputSheet!$M10 -> 0 | Y40: =IF(InputSheet!$F$17=0," ",TEXT(InputSheet!$F$17,"#.0%")&" "&MID(InputSheet!$E$17,LEN(InputSheet!$E$17)-2,2)) -> 50.0% EB
A41: K ML = | B41: =InputSheet!$C$16 -> 0.07 | H41: =IF(InputSheet!$AC9<1000,MROUND(-InputSheet!$AC9,-10),IF(InputSheet!$AC9>=10000,MROUND(-InputSheet!$AC9,-1000),MROUND(-InputSheet!$AC9,-100))) -> 0 | L41: =IF(InputSheet!$F$19=0," ",TEXT(InputSheet!$F$19,"#.0%")&" "&MID(InputSheet!$E$19,LEN(InputSheet!$E$19)-2,2)) -> 50.0% NB | N41: K ML = | O41: =InputSheet!$C$16 -> 0.07 | U41: =IF(InputSheet!$AC10<1000,MROUND(-InputSheet!$AC10,-10),IF(InputSheet!$AC10>=10000,MROUND(-InputSheet!$AC10,-1000),MROUND(-InputSheet!$AC10,-100))) -> 0 | Y41: =IF(InputSheet!$F$19=0," ",TEXT(InputSheet!$F$19,"#.0%")&" "&MID(InputSheet!$E$19,LEN(InputSheet!$E$19)-2,2)) -> 50.0% NB
A42: K SS = | B42: =InputSheet!$C$18 -> 0.07 | F42: =IF(Data!$B$1="yes",InputSheet!$C$6,InputSheet!$C$7) -> 0 | L42: =IF(InputSheet!$F$20=0," ",TEXT(InputSheet!$F$20,"#.0%")&" "&MID(InputSheet!$E$20,LEN(InputSheet!$E$20)-2,2)) -> 50.0% SB | N42: K SS = | O42: =InputSheet!$C$18 -> 0.07 | S42: =IF(Data!$B$1="yes",InputSheet!$C$6,InputSheet!$C$7) -> 0 | Y42: =IF(InputSheet!$F$20=0," ",TEXT(InputSheet!$F$20,"#.0%")&" "&MID(InputSheet!$E$20,LEN(InputSheet!$E$20)-2,2)) -> 50.0% SB
B44: ="PROJECT TRAFFIC FOR "&InputSheet!$C$6&" AT "&InputSheet!$C$7&"" -> PROJECT TRAFFIC FOR AT
B46: =InputSheet!$I$7&" INPUT TMCs COMPARED TO "&InputSheet!$I$7&" DHV" -> 0 INPUT TMCs COMPARED TO 0 DHV | O46: =InputSheet!$I$7&" INPUT TMCs COMPARED TO "&InputSheet!$I$8&" DHV" -> 0 INPUT TMCs COMPARED TO 0 DHV
D48: =IF(Data!$B$1="yes",InputSheet!$C$6,InputSheet!$C$7) -> 0 | Q48: =IF(Data!$B$1="yes",InputSheet!$C$6,InputSheet!$C$7) -> 0
E49: =-InputSheet!$E$75 -> 0 | F49: =-InputSheet!$E$74 -> 0 | G49: =-InputSheet!$E$73 -> 0 | R49: =-InputSheet!$E$75 -> 0 | S49: =-InputSheet!$E$74 -> 0 | T49: =-InputSheet!$E$73 -> 0
E50: =E8 -> 0 | F50: =F8 -> 0 | G50: =G8 -> 0 | R50: =R8 -> 0 | S50: =S8 -> 0 | T50: =T8 -> 0
E51: =IF(E49<>0,-E50/E49,"N/A") -> N/A | F51: =IF(F49<>0,-F50/F49,"N/A") -> N/A | G51: =IF(G49<>0,-G50/G49,"N/A") -> N/A | J51: =IF(Data!$B$1="yes",InputSheet!$C$7,InputSheet!$C$6) -> 0 | R51: =IF(R49<>0,-R50/R49,"N/A") -> N/A | S51: =IF(S49<>0,-S50/S49,"N/A") -> N/A | T51: =IF(T49<>0,-T50/T49,"N/A") -> N/A | W51: =IF(Data!$B$1="yes",InputSheet!$C$7,InputSheet!$C$6) -> 0
J53: =IF(L53<>0,-K53/L53,"N/A") -> N/A | K53: =J10 -> 0 | L53: =-InputSheet!$E$71 -> 0 | W53: =IF(Y53<>0,-X53/Y53,"N/A") -> N/A | X53: =W10 -> 0 | Y53: =-InputSheet!$E$71 -> 0
J54: =IF(L54<>0,-K54/L54,"N/A") -> N/A | K54: =J11 -> 0 | L54: =-InputSheet!$E$70 -> 0 | W54: =IF(Y54<>0,-X54/Y54,"N/A") -> N/A | X54: =W11 -> 0 | Y54: =-InputSheet!$E$70 -> 0
J55: =IF(L55<>0,-K55/L55,"N/A") -> N/A | K55: =J12 -> 0 | L55: =-InputSheet!$E$69 -> 0 | W55: =IF(Y55<>0,-X55/Y55,"N/A") -> N/A | X55: =W12 -> 0 | Y55: =-InputSheet!$E$69 -> 0
B56: =-InputSheet!$E$65 -> 0 | C56: =D13 -> 0 | D56: =IF(B56<>0,-C56/B56,"N/A") -> N/A | O56: =-InputSheet!$E$65 -> 0 | P56: =Q13 -> 0 | Q56: =IF(O56<>0,-P56/O56,"N/A") -> N/A
B57: =-InputSheet!$E$66 -> 0 | C57: =D14 -> 0 | D57: =IF(B57<>0,-C57/B57,"N/A") -> N/A | O57: =-InputSheet!$E$66 -> 0 | P57: =Q14 -> 0 | Q57: =IF(O57<>0,-P57/O57,"N/A") -> N/A
B58: =-InputSheet!$E$67 -> 0 | C58: =D15 -> 0 | D58: =IF(B58<>0,-C58/B58,"N/A") -> N/A | O58: =-InputSheet!$E$67 -> 0 | P58: =Q15 -> 0 | Q58: =IF(O58<>0,-P58/O58,"N/A") -> N/A
B60: =IF(Data!$B$1="yes",InputSheet!$C$7,InputSheet!$C$6) -> 0 | O60: =IF(Data!$B$1="yes",InputSheet!$C$7,InputSheet!$C$6) -> 0
G61: =IF(G63<>0,-G62/G63,"N/A") -> N/A | H61: =IF(H63<>0,-H62/H63,"N/A") -> N/A | I61: =IF(I63<>0,-I62/I63,"N/A") -> N/A | T61: =IF(T63<>0,-T62/T63,"N/A") -> N/A | U61: =IF(U63<>0,-U62/U63,"N/A") -> N/A | V61: =IF(V63<>0,-V62/V63,"N/A") -> N/A
G62: =G18 -> 0 | H62: =H18 -> 0 | I62: =I18 -> 0 | T62: =T18 -> 0 | U62: =U18 -> 0 | V62: =V18 -> 0
A63: (XXX) | B63: =InputSheet!$I$7&" Input TMCs" -> 0 Input TMCs | G63: =-InputSheet!$E$77 -> 0 | H63: =-InputSheet!$E$78 -> 0 | I63: =-InputSheet!$E$79 -> 0 | N63: (XXX) | O63: =InputSheet!$I$7&" Input TMCs" -> 0 Input TMCs | T63: =-InputSheet!$E$77 -> 0 | U63: =-InputSheet!$E$78 -> 0 | V63: =-InputSheet!$E$79 -> 0
A64: XXX | B64: ="Calculated "&InputSheet!$I$7&" DHV" -> Calculated 0 DHV | F64: =IF(Data!$B$1="yes",InputSheet!$C$6,InputSheet!$C$7) -> 0 | N64: XXX | O64: ="Calculated "&InputSheet!$I$8&" DHV" -> Calculated 0 DHV | S64: =IF(Data!$B$1="yes",InputSheet!$C$6,InputSheet!$C$7) -> 0
A65: X.XX | B65: Ratio | N65: X.XX | O65: Ratio
B66: =InputSheet!$I$7&" INPUT TMCs COMPARED TO "&InputSheet!$I$9&" DHV" -> 0 INPUT TMCs COMPARED TO 0 DHV | O66: =InputSheet!$I$7&" INPUT TMCs COMPARED TO "&InputSheet!$I$10&" DHV" -> 0 INPUT TMCs COMPARED TO 0 DHV
D68: =IF(Data!$B$1="yes",InputSheet!$C$6,InputSheet!$C$7) -> 0 | Q68: =IF(Data!$B$1="yes",InputSheet!$C$6,InputSheet!$C$7) -> 0
E69: =-InputSheet!$E$75 -> 0 | F69: =-InputSheet!$E$74 -> 0 | G69: =-InputSheet!$E$73 -> 0 | R69: =-InputSheet!$E$75 -> 0 | S69: =-InputSheet!$E$74 -> 0 | T69: =-InputSheet!$E$73 -> 0
E70: =E28 -> 0 | F70: =F28 -> 0 | G70: =G28 -> 0 | R70: =R28 -> 0 | S70: =S28 -> 0 | T70: =T28 -> 0
E71: =IF(E69<>0,-E70/E69,"N/A") -> N/A | F71: =IF(F69<>0,-F70/F69,"N/A") -> N/A | G71: =IF(G69<>0,-G70/G69,"N/A") -> N/A | J71: =IF(Data!$B$1="yes",InputSheet!$C$7,InputSheet!$C$6) -> 0 | R71: =IF(R69<>0,-R70/R69,"N/A") -> N/A | S71: =IF(S69<>0,-S70/S69,"N/A") -> N/A | T71: =IF(T69<>0,-T70/T69,"N/A") -> N/A | W71: =IF(Data!$B$1="yes",InputSheet!$C$7,InputSheet!$C$6) -> 0
J73: =IF(L73<>0,-K73/L73,"N/A") -> N/A | K73: =J30 -> 0 | L73: =-InputSheet!$E$71 -> 0 | W73: =IF(Y73<>0,-X73/Y73,"N/A") -> N/A | X73: =W30 -> 0 | Y73: =-InputSheet!$E$71 -> 0
J74: =IF(L74<>0,-K74/L74,"N/A") -> N/A | K74: =J31 -> 0 | L74: =-InputSheet!$E$70 -> 0 | W74: =IF(Y74<>0,-X74/Y74,"N/A") -> N/A | X74: =W31 -> 0 | Y74: =-InputSheet!$E$70 -> 0
J75: =IF(L75<>0,-K75/L75,"N/A") -> N/A | K75: =J32 -> 0 | L75: =-InputSheet!$E$69 -> 0 | W75: =IF(Y75<>0,-X75/Y75,"N/A") -> N/A | X75: =W32 -> 0 | Y75: =-InputSheet!$E$69 -> 0
B76: =-InputSheet!$E$65 -> 0 | C76: =D33 -> 0 | D76: =IF(B76<>0,-C76/B76,"N/A") -> N/A | O76: =-InputSheet!$E$65 -> 0 | P76: =Q33 -> 0 | Q76: =IF(O76<>0,-P76/O76,"N/A") -> N/A
B77: =-InputSheet!$E$66 -> 0 | C77: =D34 -> 0 | D77: =IF(B77<>0,-C77/B77,"N/A") -> N/A | O77: =-InputSheet!$E$66 -> 0 | P77: =Q34 -> 0 | Q77: =IF(O77<>0,-P77/O77,"N/A") -> N/A
B78: =-InputSheet!$E$67 -> 0 | C78: =D35 -> 0 | D78: =IF(B78<>0,-C78/B78,"N/A") -> N/A | O78: =-InputSheet!$E$67 -> 0 | P78: =Q35 -> 0 | Q78: =IF(O78<>0,-P78/O78,"N/A") -> N/A
B80: =IF(Data!$B$1="yes",InputSheet!$C$7,InputSheet!$C$6) -> 0 | O80: =IF(Data!$B$1="yes",InputSheet!$C$7,InputSheet!$C$6) -> 0
G81: =IF(G83<>0,-G82/G83,"N/A") -> N/A | H81: =IF(H83<>0,-H82/H83,"N/A") -> N/A | I81: =IF(I83<>0,-I82/I83,"N/A") -> N/A | T81: =IF(T83<>0,-T82/T83,"N/A") -> N/A | U81: =IF(U83<>0,-U82/U83,"N/A") -> N/A | V81: =IF(V83<>0,-V82/V83,"N/A") -> N/A
G82: =G38 -> 0 | H82: =H38 -> 0 | I82: =I38 -> 0 | T82: =T38 -> 0 | U82: =U38 -> 0 | V82: =V38 -> 0
A83: (XXX) | B83: =InputSheet!$I$7&" Input TMCs" -> 0 Input TMCs | G83: =-InputSheet!$E$77 -> 0 | H83: =-InputSheet!$E$78 -> 0 | I83: =-InputSheet!$E$79 -> 0 | N83: (XXX) | O83: =InputSheet!$I$7&" Input TMCs" -> 0 Input TMCs | T83: =-InputSheet!$E$77 -> 0 | U83: =-InputSheet!$E$78 -> 0 | V83: =-InputSheet!$E$79 -> 0
A84: XXX | B84: ="Calculated "&InputSheet!$I$9&" DHV" -> Calculated 0 DHV | F84: =IF(Data!$B$1="yes",InputSheet!$C$6,InputSheet!$C$7) -> 0 | N84: XXX | O84: ="Calculated "&InputSheet!$I$10&" DHV" -> Calculated 0 DHV | S84: =IF(Data!$B$1="yes",InputSheet!$C$6,InputSheet!$C$7) -> 0
A85: X.XX | B85: Ratio | N85: X.XX | O85: Ratio

Sheet Data
A1: Mainline N/S? | B1: no | C1: Automatic Estimating? | F1: 3 | I1: PIN
A2: FSUTMS input? | B2: no
A3: Intersection | B3: 4 | C3: (3 or 4 legs?)
A4: Two-Way Selected | B4: 1 | C4: 0 | D4: 0 | E4: 1
A5: Three-Way Selected | B5: 1 | C5: 1 | D5: 1 | E5: 1 | F5: (value of 1 means approach is active) (NB, SB, EB, WB)
A6: Macro Run | B6: no
A7: Errors | B7: Growth
B8: 1 | C8: 1 | D8: 1=Linear, 2 = Exponential, 3 = Decaying for ML, side street
B10: N/S Road
B11: E/W Road

Sheet XML
B1: year | C1: kmain | D1: kside | E1: OWDHTM_NB_T | F1: OWDHTM_NB_RT | G1: OWDHTM_NB_LT | H1: OWDHTM_SB_T | I1: OWDHTM_SB_RT | J1: OWDHTM_SB_LT | K1: OWDHTM_EB_T | L1: OWDHTM_EB_RT | M1: OWDHTM_EB_LT | N1: OWDHTM_WB_T | O1: OWDHTM_WB_RT | P1: OWDHTM_WB_LT | Q1: NS_ROADNAME | R1: EW_ROADNAME | S1: NOTES
A2: EXISTING | B2: =InputSheet!I7 -> 0 | C2: =InputSheet!C16*100 -> 7 | D2: =InputSheet!C18*100 -> 7 | E2: =TurnSheets!H18 -> 0 | F2: =TurnSheets!I18 -> 0 | G2: =TurnSheets!G18 -> 0 | H2: =TurnSheets!F8 -> 0 | I2: =TurnSheets!G8 -> 0 | J2: =TurnSheets!E8 -> 0 | K2: =TurnSheets!D14 -> 0 | L2: =TurnSheets!D15 -> 0 | M2: =TurnSheets!D13 -> 0 | N2: =TurnSheets!J11 -> 0 | O2: =TurnSheets!J10 -> 0 | P2: =TurnSheets!J12 -> 0 | Q2: =Data!$C$10 -> 0 | R2: =Data!$C$11 -> 0
A3: OPEN | B3: =InputSheet!I8 -> 0 | C3: =InputSheet!C16*100 -> 7 | D3: =InputSheet!C18*100 -> 7 | E3: =TurnSheets!U18 -> 0 | F3: =TurnSheets!V18 -> 0 | G3: =TurnSheets!T18 -> 0 | H3: =TurnSheets!S8 -> 0 | I3: =TurnSheets!T8 -> 0 | J3: =TurnSheets!R8 -> 0 | K3: =TurnSheets!Q14 -> 0 | L3: =TurnSheets!Q15 -> 0 | M3: =TurnSheets!Q13 -> 0 | N3: =TurnSheets!W11 -> 0 | O3: =TurnSheets!W10 -> 0 | P3: =TurnSheets!W12 -> 0 | Q3: =Data!$C$10 -> 0 | R3: =Data!$C$11 -> 0
A4: MID | B4: =InputSheet!I9 -> 0 | C4: =InputSheet!C16*100 -> 7 | D4: =InputSheet!C18*100 -> 7 | E4: =TurnSheets!H38 -> 0 | F4: =TurnSheets!I38 -> 0 | G4: =TurnSheets!G38 -> 0 | H4: =TurnSheets!F28 -> 0 | I4: =TurnSheets!G28 -> 0 | J4: =TurnSheets!E28 -> 0 | K4: =TurnSheets!D34 -> 0 | L4: =TurnSheets!D35 -> 0 | M4: =TurnSheets!D33 -> 0 | N4: =TurnSheets!J31 -> 0 | O4: =TurnSheets!J30 -> 0 | P4: =TurnSheets!J32 -> 0 | Q4: =Data!$C$10 -> 0 | R4: =Data!$C$11 -> 0
A5: DESIGN | B5: =InputSheet!I10 -> 0 | C5: =InputSheet!C16*100 -> 7 | D5: =InputSheet!C18*100 -> 7 | E5: =TurnSheets!U38 -> 0 | F5: =TurnSheets!V38 -> 0 | G5: =TurnSheets!T38 -> 0 | H5: =TurnSheets!S28 -> 0 | I5: =TurnSheets!T28 -> 0 | J5: =TurnSheets!R28 -> 0 | K5: =TurnSheets!Q34 -> 0 | L5: =TurnSheets!Q35 -> 0 | M5: =TurnSheets!Q33 -> 0 | N5: =TurnSheets!W31 -> 0 | O5: =TurnSheets!W30 -> 0 | P5: =TurnSheets!W32 -> 0 | Q5: =Data!$C$10 -> 0 | R5: =Data!$C$11 -> 0
A26: OWDHTM | B26: One Way Design Hour Turning Movement
A27: T | B27: Through
A28: LT | B28: Left Turn
A29: RT | B29: Right Turn
